Workbook

Sheet Designer Input Sheet
A1: (cntl-r = record current parameters cntl-c = copy parameters from this sheet to model) | E1: Byron OSMS Design Model (Disposal Area Calculator) | P1: rows | Q1: cols | R1: colnames
A2: (cntl-c = copy parameters from this sheet to model) | E2: =CONCATENATE("Version: ",'Design Model'!C1) -> Version: On-site_Sewage_Management_System_Design_Model-Excel_version (3).xls
A3: Head count by (1) bedrooms / (2) persons | E3: Step 1 - Enter Number Of Bedrooms | J3: → | K3: → | L3: → | P3: =ROW() -> 3 | Q3: =COLUMN(M3) -> 13 | R3: =ADDRESS(P3,Q3) -> $M$3
A4: Bedrooms (gp1) | E4: Step 2 - Enter Blocksize | J4: → | K4: → | L4: → | P4: =ROW() -> 4 | Q4: =COLUMN(M4) -> 13 | R4: =ADDRESS(P4,Q4) -> $M$4
A5: Bedrooms (gp2)
A6: Persons (grp 1) | D6: =AC14 -> 1 | E6: Step 3 - Select Waterway Buffer | P6: =ROW() -> 6 | Q6: =COLUMN(D6) -> 4 | R6: =ADDRESS(P6,Q6) -> $D$6
A7: Persons (grp 2)
A8: Block size (ha) | AU8: FALSE | AV8: TRUE
A9: Setback type listbox | E9: Step 4 - Enter Within Buffer Distance | J9: → | K9: → | L9: → | P9: =ROW() -> 9 | Q9: =COLUMN(M9) -> 13 | R9: =ADDRESS(P9,Q9) -> $M$9 | AU9: FALSE
A10: Setback distance (m)
A11: Daily Effluent Flow per person (L/day) | E11: Step 5 - Select Water Supply
A12: Daily effluent water supply type listbox | D12: 4 | P12: =ROW() -> 12 | Q12: =COLUMN(D12) -> 4 | R12: =ADDRESS(P12,Q12) -> $D$12
A13: toilet g1 tickbox | E13: Step 6 - Select Facilities/Water Usage | J13: → | K13: → | AD13: =INDEX(AE13:AF13,AC14) -> 20 | AE13: 20 | AF13: 10 | AG13: perm water
A14: bath g1 tickbox | D14: FALSE | F14: (select or deselect each checkbox) | P14: =ROW() -> 14 | Q14: =COLUMN(D14) -> 4 | R14: =ADDRESS(P14,Q14) -> $D$14 | AB14: Link cell | AC14: 1 | AD14: =INDEX(AE14:AF14,AC14) -> 100 | AE14: 100 | AF14: 40 | AG14: intermittant water
A15: laundry g1 tickbox | J15: → | K15: →
A16: kitchen g1 tickbox | D16: FALSE | P16: =ROW() -> 16 | Q16: =COLUMN(D16) -> 4 | R16: =ADDRESS(P16,Q16) -> $D$16
A17: toilet g2 tickbox | J17: → | K17: →
A18: bath g2 tickbox | D18: FALSE | P18: =ROW() -> 18 | Q18: =COLUMN(D18) -> 4 | R18: =ADDRESS(P18,Q18) -> $D$18
A19: laundry g2 tickbox | J19: → | K19: →
A20: kitchen g2 tickbox | D20: FALSE | P20: =ROW() -> 20 | Q20: =COLUMN(D20) -> 4 | R20: =ADDRESS(P20,Q20) -> $D$20
A21: Treatment system listbox
A22: % black to total wastewater in a full system: Water | D22: 6 | E22: Step 7 - Select Treatment Method | P22: =ROW() -> 22 | Q22: =COLUMN(D22) -> 4 | R22: =ADDRESS(P22,Q22) -> $D$22
A23: N production per person per year (kg/person/yr)
A24: % black to total wastewater in a full system: TN
A25: N loss in treatment system (% reduction)
A26: N loss in disposal bed (% reduction)
A27: N Plant Uptake rate (kg/ha/year)
A28: P production per person per year (kg/person/yr)
A29: % black to total wastewater in a full system: TP | E29: Step 8 - Select Soil Type ( 'Morand')
A30: P uptake by plants (Hp) (kg/ha/yr)
A31: P soil sorption (Ps) (kg/ha/m depth)
A32: P soil sorption according to soil type listbox | D32: 1 | P32: =ROW() -> 32 | Q32: =COLUMN(D32) -> 4 | R32: =ADDRESS(P32,Q32) -> $D$32
A33: Water Table Depth (Wtd) (m)
A34: Buffer to Water Table (Bwt) (m)
A35: Time for accumulation of P(years) | E35: Step 9 - Enter Depth To Water Table
A36: Crop factor(grass = 0.74)
A37: Crop coefficient (TRUE) / crop factor (FALSE) tickbox | E37: Step 10 - Select Soil Texture & Structure Below System
A38: % Effective Rainfall
A39: Effective Rainfall listbox | D39: 2 | P39: =ROW() -> 39 | Q39: =COLUMN(D39) -> 4 | R39: =ADDRESS(P39,Q39) -> $D$39
A40: Percolation (mm/day)
A41: Soil texture and structure beneath system listbox | D41: 1 | P41: =ROW() -> 41 | Q41: =COLUMN(D41) -> 4 | R41: =ADDRESS(P41,Q41) -> $D$41
A42: Depth of root zone (m)
A43: Effective porosity of root zone
A44: Avail.Water of root zone
A45: Soil texture in rootzone listbox | D45: 1 | P45: =ROW() -> 45 | Q45: =COLUMN(D45) -> 4 | R45: =ADDRESS(P45,Q45) -> $D$45
A46: Depth of trench below root zone (m)
A47: Effective porosity of trench below root zone
A48: Avail.Water of trench below root zone
A49: Permissable percentile exceedence
A50: Trench width (m) | E50: Step 11 -Select Disposal Area Slope/Type
A51: Lateral seepage width (m)
A52: Disposal Type SSI (1) / ETA (2) listbox | D52: 1 | P52: =ROW() -> 52 | Q52: =COLUMN(D52) -> 4 | R52: =ADDRESS(P52,Q52) -> $D$52
A53: Number of trenches (spinner button) | E53: Step 12 - Select Soil Texture In Root Zone
A54: Hydraulic area (m2)
A55: Nitrogen area (m2)
A56: Phosphorus area (m2)
A57: Water balance area (m2) - Cntl-q (see text) | E57: Step 13 - Select Land Application Type
A58: Final area (m2)
A59: N load plant uptake
A60: N load exceedence
A61: N load percolated (kg/yr) | E61: Step 14 - Select Calculate Button Below
A62: Total N load released (kg/yr)
F66: Minimum Land Application Area Required (m2)
G68: 144.3481445
E71: Step 15 - Select Print Button Below

Sheet Council Report Sheet
A2: =CONCATENATE("Byron OSMS Design Model - version ",'Design Model'!C1) -> Byron OSMS Design Model - version On-site_Sewage_Management_System_Design_Model-Excel_version (3).xls | B2: =CONCATENATE("Printed ",TEXT(NOW(),"dd mmm 'yy hh:mm AM/PM")) -> Printed 24 May '21 12:46 PM
A3: Head count by (1) bedrooms / (2) persons | B3: 1
A4: Bedrooms (gp1) | B4: 3
A5: Bedrooms (gp2) | B5: 0
A6: Persons (grp 1) | B6: 4.5
A7: Persons (grp 2) | B7: 0
A8: Block size (ha) | B8: 10000
A9: Setback type listbox | B9: 1
A10: Setback distance (m) | B10: 100
A11: Daily Effluent Flow per person (L/day) | B11: 115
A12: Daily effluent water supply type listbox | B12: 4
A13: toilet g1 tickbox | B13: FALSE
A14: bath g1 tickbox | B14: TRUE
A15: laundry g1 tickbox | B15: TRUE
A16: kitchen g1 tickbox | B16: TRUE
A17: toilet g2 tickbox | B17: FALSE
A18: bath g2 tickbox | B18: FALSE
A19: laundry g2 tickbox | B19: FALSE
A20: kitchen g2 tickbox | B20: FALSE
A21: Treatment system listbox | B21: 6
A22: % black to total wastewater in a full system: Water | B22: 0.32
A23: N production per person per year (kg/person/yr) | B23: 4.2
A24: % black to total wastewater in a full system: TN | B24: 0.7
A25: N loss in treatment system (% reduction) | B25: 0.5
A26: N loss in disposal bed (% reduction) | B26: 0.2
A27: N Plant Uptake rate (kg/ha/year) | B27: 200
A28: P production per person per year (kg/person/yr) | B28: 0.6
A29: % black to total wastewater in a full system: TP | B29: 0.4
A30: P uptake by plants (Hp) (kg/ha/yr) | B30: 10
A31: P soil sorption (Ps) (kg/ha/m depth) | B31: 10000
A32: P soil sorption according to soil type listbox | B32: 3
A33: Water Table Depth (Wtd) (m) | B33: 3
A34: Buffer to Water Table (Bwt) (m) | B34: 0.5
A35: Time for accumulation of P(years) | B35: 50
A36: Crop factor(grass = 0.74) | B36: 1
A37: Crop coefficient (TRUE) / crop factor (FALSE) tickbox | B37: TRUE
A38: % Effective Rainfall | B38: 0.85
A39: Effective Rainfall listbox | B39: 2
A40: Percolation (mm/day) | B40: 5
A41: Soil texture and structure beneath system listbox | B41: 6
A42: Depth of root zone (m) | B42: 0.3
A43: Effective porosity of root zone | B43: 0.37
A44: Avail.Water of root zone | B44: 0.15
A45: Soil texture in rootzone listbox | B45: 3
A46: Depth of trench below root zone (m) | B46: 0
A47: Effective porosity of trench below root zone | B47: 0
A48: Avail.Water of trench below root zone | B48: 0
A49: Permissable percentile exceedence | B49: 0.05
A50: Trench width (m) | B50: 0.6
A51: Lateral seepage width (m) | B51: 0.3
A52: Disposal Type SSI (1) / ETA (2) listbox | B52: 1
A53: Number of trenches (spinner button) | B53: 13
A54: Hydraulic area (m2) | B54: 144.3481445
A55: Nitrogen area (m2) | B55: 0
A56: Phosphorus area (m2) | B56: 31.76470588
A57: Water balance area (m2) - Cntl-q (see text) | B57: 144.3481445
A58: Final area (m2) | B58: 144.3481445
A59: N load plant uptake | B59: 2.268
A60: N load exceedence | B60: 0
A61: N load percolated (kg/yr) | B61: 0
A62: Total N load released (kg/yr) | B62: 0

Sheet Design Model
A1: Byron OSMS Design Model | B1: Version: | C1: On-site_Sewage_Management_System_Design_Model-Excel_version (3).xls | J1: Period of Rainfall & Evaporation Record: 01/07/1980 - 30/06/2001 | P1: Soil unit - Morand Source : SCU data quoted in LCC Strategy (1999) | R1: Conserv. P sorption | U1: Water Supply | V1: Typical wastewater flows L/p/d - household with standard facilities | Y1: Defaults | Z1: N production | AA1: 4.2 | AB1: kg/p/yr | AC1: Davison et al. (2002) | AD1: N limit - exponential curve | AE1: Deg.treat | AF1: Septic (primary teatment only) | AH1: Remov. N in system | AI1: 0 | AJ1: Source: | AK1: Type of toilet | AP1: Sources | AQ1: Water - Jeppesen & Solley (1994) | AR1: TN- Witt et al. 1974 | AS1: TP- Witt et al. 1974 | AT1: BOD | BU1: 1.00001 | BV1: 1 | BW1: =LN(BU1-BV1) -> -11.51292546
S2: 1 | T2: 0 | U2: Reticulated supply (bore,spring,creek) 180L/p.d | V2: 180 | X2: BOD removal relative to 20mg/L | Z2: P production | AA2: 0.6 | AB2: kg/p/yr | AC2: " " | AD2: =AD5*(1-EXP(-AD7*E6)) -> 6.321205588 | AF2: AWTS | AI2: 0.2 | AJ2: E&HPG | AP2: Toilet | AQ2: 0.32 | AR2: 0.68 | AS2: 0.13 | AU2: Grp 1 | AV2: Grp 2 | AW2: bedrooms-to-persons-coefficient
E3: Daily effluent flow accord. water supply type | P3: "Alluvial"Soils 1 (dp,mu,my,te) 10,000 kg/ha/m | Q3: 1 | R3: 10000 | S3: 2 | T3: 10000 | U3: Reticulated + std. water saving devices 145L/p.d | V3: 145 | Y3: Blackwater min area | Z3: denitrification | AA3: 0.2 | AC3: Geary & Gardner (1996) | AD3: y=A(1-exp(-kx)) | AF3: Septic + single pass sandfilter (SPF) | AI3: 0.25 | AJ3: Hagare | AP3: Bathroom | AQ3: 0.38 | AR3: 0.05 | AS3: 0.01 | AU3: =B5 -> 3 | AV3: =B6 -> 0 | AW3: 1.5 | AX3: 2 | BS3: REED BED AREA | BU3: TN kg/yr | BV3: Tot Q l/d | BW3: totQ m3/d | BX3: conc mg/L
A4: 1 | D4: Block size (m2) | G4: Grp1 | H4: Grp 2 | P4: "Alluvial"Soils 2 (cr) 2,000 kg/ha/m | Q4: 1 | R4: 2000 | S4: 3 | T4: 12000 | U4: Roof water harvesting 140L/p.d | V4: 140 | X4: =IF(AF7=6, 1-MAX(0,(BX14-20)/(BU8-20)), 1) -> 0.9416627467 | Y4: 15 | Z4: N plant uptake by turf | AA4: 200 | AB4: kg/ha/yr | AC4: Martens (1998) | AD4: A | AF4: Septic + SPF, 25% septic return flow | AI4: 0.3 | AJ4: Davison | AP4: Laundry | AQ4: 0.23 | AR4: 0.12 | AS4: 0.55 | AU4: =IF($A$4=2,AU$3/$AW$3,AU$3) -> 3 | AV4: =IF($A$4=2,AV$3/$AW$3,AV$3) -> 0 | AW4: bedrooms | AX4: Bathroom,laundry, kitchen calculated as proportion of greywater (Witt et al. 1974) for TN and TP | BS4: (Davison 2003) | BU4: =B8 -> 5.67 | BV4: =B7 -> 351.9 | BW4: =BV4/1000 -> 0.3519 | BX4: =(1000000*BU4/365)/BV4 -> 44.1439232 | CC4: Values in teal colour are values carried forward
A5: =CONCATENATE("# ",INDEX(AW$4:AW$5,A$4)," (Grp 1)") -> # bedrooms (Grp 1) | B5: 3 | D5: 10000 | E5: =IF(D6<AD13,MIN(AD8,D5),D5)/10000 -> 1 | F5: 100 | J5: Source: AS/NZS1547,2000 | P5: Red Basaltic Soils (bg,ca,co,el,ew,mb,ro,wo) 10,000 kg/ha/m | Q5: 2 | R5: 10000 | S5: 4 | T5: 10000 | U5: Roof water harvesting + std. water sav. 115L/p.d | V5: 115 | W5: ratio flow rate/lowest flow rate | Z5: P plant uptake by turf | AA5: 10 | AB5: kg/ha/yr | AC5: Myers et al. (1994) | AD5: 10 | AF5: Septic + recirculating sandfilter | AI5: 0.45 | AJ5: E&HPG | AP5: Kitchen | AQ5: 0.07 | AR5: 0.15 | AS5: 0.31 | AU5: =IF($A$4=1,AU$3*$AW$3,AU$3) -> 4.5 | AV5: =IF($A$4=1,AV$3*$AW$3,AV$3) -> 0 | AW5: persons | BE5: TN proportion in greywater to total household wastewater = 0.18 (Jeppesen & Solley 1994) but use 0.30 to allow for leachate introduced to greywater (Davison ) | BS5: . | BT5: uses BOD contribution | BU5: full BOD | BV5: % of BOD | BW5: flow coeff | BX5: f.c. overwrite | BY5: BOD coeff for source (toilet etc) | BZ5: BOD source&flow-adjusted | CC5: Values in green are default input values
A6: =CONCATENATE("# ",INDEX(AW$4:AW$5,A$4)," (Grp 2)") -> # bedrooms (Grp 2) | B6: 0 | D6: 100 | E6: =(D5*D6/AD13)/10000 -> 1 | P6: Duplex Soils (ba, bi,bu,mi, ni) 8,000 kg/ha/m | Q6: 3 | R6: 8000 | T6: Link cell | U6: 4 | V6: =INDEX(V2:V5,U6) -> 115 | W6: =D7/MIN(V2:V5) -> 1 | Z6: Buffer to WT | AA6: 0.5 | AB6: m | AC6: LCC (1999) | AD6: k | AF6: Septic + reedbed | AI6: =IF(ISBLANK(AH6),I15,AH6) -> 0.5 | AL6: Trench defaults | AQ6: Water | AR6: TN | AS6: TP | AT6: BOD | AW6: Grp1 water | AX6: Grp1 TN | AY6: Grp1 TP | AZ6: Grp1BOD | BA6: Grp2 water | BB6: Grp2 TN | BC6: Grp2 TP | BD6: Grp2BOD | BE6: TP proportion in greywater to total household wastewater = 0.70 (Jeppesen & Solley 1994) but use 0.50 (Davison) | BT6: % from wastewater flow | BU6: 250 | BV6: =BU8/BU6 -> 0.5 | BW6: =IF(ISBLANK(BX6),W6,BX6) -> 1 | BY6: =AZ13/(AU5+AV5) -> 0.5 | BZ6: =$BY$6*$BU$6/$BW$6 -> 125
B7: =IF(A7<>0,A7, AW13*D7) -> 351.9 | C7: Daily Effluent Flow per person (L/day) | D7: 115 | E7: % black to tot WW in a full system | F7: 0.32 | G7: Wastewater stream | J7: Source : Jeppesen & Solley (1994) and Witt et al.(1974) | P7: Podzol Soils (ab,bo,br,eb,fh,ki,ku,og,po,ty,wy) 1,000 kg/ha/m | Q7: 4 | R7: 1000 | U7: Soil texture & structure beneath system | V7: list | W7: Prim. Treat. Absorp bed DLR (mm/d) | X7: DIR for SSI X23 should be =IF($X$4=1,INDEX($X$8:$X$22,$V23),0) | Y7: Secondary treatment Absorp Bed DLR(mm/d) | Z7: Time P accumulation | AA7: 50 | AB7: years | AC7: LCC (1999) | AD7: 1 | AE7: LinkCell | AF7: 6 | AH7: ^overwrt reedbed | AI7: =INDEX(AI1:AI6,AF7) -> 0.5 | AL7: SSI Pipe separation | AM7: 0.6 | AP7: Toilet | AQ7: =F7 -> 0.32 | AR7: =F8 -> 0.7 | AS7: =F11 -> 0.4 | AT7: 0.5 | AU7: FALSE | AV7: FALSE | AW7: =AQ7*$AU7 -> 0 | AX7: 0 | AY7: 0 | AZ7: 0 | BA7: =AQ7*$AV7 -> 0 | BB7: 0 | BC7: 0 | BD7: 0 | BE7: Proportion of greywater in total household wastewater = 0.68 (Jeppesen …) | BT7: T deg C | BU7: Conc inlet Ci mg/L | BV7: Background conc Cb mg/L | BW7: ln(Ci-Cb) | BX7: target conc outlet Co mg/L | BY7: ln(Co-Cb) | BZ7: kv20 d-1 | CA7: Temperature correction factor theta | CB7: kvT d-1 | CC7: HRT d | CD7: TN reduction | CE7: y | CF7: p | CG7: Area (m2) | CH7: Eqiv pers | CI7: A/person
A8: TN production per year (kg/year) | B8: =AX13*D8 -> 5.67 | C8: N prod. per capita (kg/person/yr) | D8: 4.2 | E8: % black to tot WW in a full system: TN | F8: 0.7 | H8: Treatment system | J8: Source N prod /person/yr: Aust., local & overseas studies (Davison 2002) | P8: Link Cell | Q8: 3 | R8: =INDEX($R3:$R7,Q8) -> 10000 | S8: 1 | T8: =INDEX($T2:$T5,S8) -> 0 | U8: Gravels,Sands Ksat >3.0m/d | V8: 1 | W8: 20 | X8: 10 | Y8: 50 | Z8: Specific Crop Coeff. | AA8: 1 | AC8: Grayson et al. (1996) | AE8: Effective Rain Capture | AF8: Mounded bed | AG8: 0.65 | AL8: ETA Trench width | AM8: 2 | AP8: Bathroom: shower, bath,basin | AQ8: =(AQ3/ SUM(AQ$3:AQ$5)) *(1-AQ$7) -> 0.38 | AR8: 0.046875 | AS8: 0.006896551724 | AT8: 0.05 | AU8: TRUE | AV8: FALSE | AW8: 0.38 | AX8: 0.046875 | AY8: 0.006896551724 | AZ8: 0.05 | BA8: 0 | BB8: 0 | BC8: 0 | BD8: 0 | BS8: BOD | BT8: 24 | BU8: =MAX((BV$8+BV$8*10^-16),BZ6) -> 125 | BV8: 5 | BW8: =LN(BU8-BV8) -> 4.787491743 | BX8: 20 | BY8: =LN(BX8-BV8) -> 2.708050201 | BZ8: 0.52 | CA8: 0.953 | CB8: =(BZ8*CA8^(BT8-20)) -> 0.4289186656 | CC8: =MAX(0,(BW8-BY8)/CB8) -> 4.848102236
B9: =IF(A9<>0,A9, B8*(1-D9)*(1-F9)) -> 2.268 | C9: N loss in treatment system (% reduction) | D9: 0.5 | E9: N loss in disposal bed (% reduction) | F9: 0.2 | H9: TRUE | I9: =CONCATENATE("Current Inlet BOD conc. ~ ",TEXT(BU8,"0"), " mg/L") -> Current Inlet BOD conc. ~ 125 mg/L | R9: Source porosity: Dunne & Leopold,(1978) | S9: Source available water: Dunne & Leopold,(1978) | U9: Sandy loams - weakly structured Ksat >3.0m/d | V9: 2 | W9: 20 | X9: 9 | Y9: 50 | Z9: Exceedence | AA9: 0.05 | AB9: years | AC9: LCC (1999) | AF9: Level bed with grass | AG9: 0.85 | AK9: =AD5 -> 10 | AL9: Trench width allow | AM9: 0.3 | AP9: Laundry | AQ9: 0.23 | AR9: 0.1125 | AS9: 0.3793103448 | AT9: 0.25 | AU9: TRUE | AV9: FALSE | AW9: 0.23 | AX9: 0.1125 | AY9: 0.3793103448 | AZ9: 0.25 | BA9: 0 | BB9: 0 | BC9: 0 | BD9: 0 | BS9: TN | BT9: 16 | BU9: =BX$4 -> 44.1439232 | BV9: 1.5 | BW9: =LN(BU9-BV9) -> 3.752884783 | BX9: 20 | BY9: =LN(BX9-BV9) -> 2.917770732 | BZ9: 0.18 | CA9: 1 | CB9: =(BZ9*CA9^(BT9-20)) -> 0.18 | CC9: =MAX(0,(BW9-BY9)/CB9) -> 4.639522506 | CD9: =1-BX9/BU9 -> 0.5469365079
A10: N Plant Uptake rate (kg/ha/year) | B10: 200 | G10: =IF(H10, Y4*AW13, 0) -> 45.9 | H10: TRUE | J10: Source: Morand,1994 soil units, SCU data in LCC,2000 | M10: N calculations | R10: with conversion to international texture names | S10: with conversion to international texture names | U10: Sandy loams - massive Ksat 1.4 - 3.0m/d | V10: 3 | W10: 15 | X10: 8 | Y10: 50 | AE10: Link Cell | AF10: 2 | AG10: =INDEX(AG8:AG9,AF10) -> 0.85 | AK10: =AD7 -> 1 | AP10: Kitchen: sink,dishw | AQ10: 0.07 | AR10: 0.140625 | AS10: 0.2137931034 | AT10: 0.2 | AU10: TRUE | AV10: FALSE | AW10: 0.07 | AX10: 0.140625 | AY10: 0.2137931034 | AZ10: 0.2 | BA10: 0 | BB10: 0 | BC10: 0 | BD10: 0 | BS10: TN | BT10: =BT$9 -> 16 | BU10: =BX$4 -> 44.1439232 | BV10: =BV$9 -> 1.5 | BW10: =LN(BU10-BV10) -> 3.752884783 | BX10: =(1-CD10)*BU10 -> 22.0719616 | BY10: =LN(BX10-BV10) -> 3.023929061 | BZ10: =BZ$9 -> 0.18 | CA10: =CA$9 -> 1 | CB10: =(BZ10*CA10^(BT10-20)) -> 0.18 | CC10: =MAX(0,(BW10-BY10)/CB10) -> 4.04975401 | CD10: =I15 -> 0.5 | CE10: =I$14 -> 0.5 | CF10: 0.4 | CG10: =CC10* BW$4/(CE10*CF10) -> 7.125542181 | CH10: =AW$13 -> 3.06 | CI10: =CG10/CH10 -> 2.328608556 | CJ10: specified TN %
B11: =IF(A11<>0,A11, AY13*D11) -> 1.62 | C11: P prod. per person per yr (kg/person/yr) | D11: 0.6 | E11: Proportion black to total wastewater in a full system: TP | F11: 0.4 | G11: P soil sorption accord. soil type | J11: Source P prod /person/yr: Aust. & local studies (Davison, 2002) | M11: Total yearly flow | N11: =$B$7*365 -> 128443.5 | P11: Soil Texture | R11: Effective Porosity | S11: AW | T11: Comments | U11: Loams - high/moderate structured Ksat 1.5 - 3.0m/d | V11: 4 | W11: 15 | X11: 7 | Y11: 50 | AC11: Buffer to permanent water | AP11: Total % | AQ11: =SUM(AQ7:AQ10) -> 1 | AR11: =SUM(AR7:AR10) -> 1 | AS11: =SUM(AS7:AS10) -> 1 | AT11: =SUM(AT7:AT10) -> 1 | AW11: =SUM(AW7:AW10) -> 0.68 | AX11: 0.3 | AY11: 0.6 | AZ11: 0.5 | BA11: 0 | BB11: 0 | BC11: 0 | BD11: 0 | BS11: TN | BT11: =BT$9 -> 16 | BU11: =BX$4 -> 44.1439232 | BV11: =BV$9 -> 1.5 | BW11: =LN(BU11-BV11) -> 3.752884783 | BX11: =BV11+EXP(BW11-CC11*CB11) -> 22.0719616 | BZ11: =BZ$9 -> 0.18 | CA11: 1 | CB11: =(BZ11*CA11^(BT11-20)) -> 0.18 | CC11: =CG11*(CE11*CF11)/BW$4 -> 4.04975401 | CD11: =1-BX11/BU11 -> 0.5 | CE11: =I$14 -> 0.5 | CF11: =CF$10 -> 0.4 | CG11: =I16 -> 7.125542181 | CH11: =AW$13 -> 3.06 | CI11: =CG11/CH11 -> 2.328608556 | CJ11: Specify area
A12: P uptake by plants (Hp) (kg/ha/yr) | B12: 10 | C12: N plant uptake (kg/yr) | D12: =$N$21 -> 2.268 | E12: =CONCATENATE("Total N-load ",TEXT(SUM(D12:D14),"0.00"),"kg/yr") -> Total N-load 2.27kg/yr | M12: less overflow | N12: =$B$19*$J$36 -> 5822.229759 | P12: Soil texture in root zone likely to be at least class # | Q12: =CEILING(SQRT(IF(V23=1,0,V23) +1), 1) -> 3 | U12: Loams - weakly structured or massive Ksat 0.5 - 1.5m/d | V12: 5 | W12: 10 | X12: 6 | Y12: 30 | AC12: Buffer to intermittant water | AD12: =INDEX(AE12:AF12,AC13) -> 20 | AE12: 20 | AF12: 10 | AG12: Buffer distances | AP12: # eqiv pers | AW12: =AW11*$AU$5 -> 3.06 | AX12: =AX11*$AU$5 -> 1.35 | AY12: =AY11*$AU$5 -> 2.7 | AZ12: =AZ11*$AU$5 -> 2.25 | BA12: =BA11*$AV$5 -> 0 | BB12: =BB11*$AV$5 -> 0 | BC12: =BC11*$AV$5 -> 0 | BD12: =BD11*$AV$5 -> 0
A13: P soil sorption (Ps) (kg/ha/m depth) | B13: 10000 | C13: N load exceedence | D13: =$B$9-$N$15 -> 0 | F13: Soil texture & structure beneath system | J13: Soil texture/sturcture Source AS/ANZ 1547(2000) | M13: Tot flow infiltr. L/yr | N13: =$N$11-$N$12 -> 122621.2702 | P13: (None) | Q13: 1 | R13: 0 | S13: 0 | U13: Clay loams - high/mod structured Ksat 0.5 - 1.5m/d | V13: 6 | W13: 10 | X13: 5 | Y13: 30 | AB13: Link cell | AC13: 1 | AD13: =INDEX(AE13:AF13,AC13) -> 100 | AE13: 100 | AF13: 40 | AP13: total equiv persons | AW13: =AW12+BA12 -> 3.06 | AX13: =AX12+BB12 -> 1.35 | AY13: =AY12+BC12 -> 2.7 | AZ13: =AZ12+BD12 -> 2.25 | BS13: TN | BT13: =BT$9 -> 16 | BU13: =BX$4 -> 44.1439232 | BV13: =BV$9 -> 1.5 | BW13: =LN(BU13-BV13) -> 3.752884783 | BX13: =BV13+EXP(BW13-CC13*CB13) -> 19.31830644 | BZ13: 0.18 | CA13: 1 | CB13: =(BZ13*CA13^(BT13-20)) -> 0.18 | CC13: =CC8 -> 4.848102236 | CD13: =1-BX13/BU13 -> 0.5623790311 | CE13: =I$14 -> 0.5 | CF13: =CF$10 -> 0.4 | CG13: =CC13* BW$4/(CE13*CF13) -> 8.530235884 | CH13: =AW$13 -> 3.06 | CI13: =CG13/CH13 -> 2.787658786 | CJ13: 2ndary level TN%
A14: Water Table/ Bedrock Depth (m) | B14: 3 | C14: N load percolated (kg/yr) | D14: =MAX(0,$N$22) -> 0 | H14: Wetted depth(m) | I14: 0.5 | M14: Effect.effluent ratio | N14: =$N$13/$N$11 -> 0.9546708883 | O14: apply ratio to N? | P14: Bluemetal | Q14: 2 | R14: 0.43 | S14: 0 | T14: from LCC Lismore Quarry# && | U14: Clay loams - weakly structured Ksat 0.12 - 0.5m/d | V14: 7 | W14: 6 | X14: 4.5 | Y14: 20 | AC14: Error messages for DLR=#N/A : | BS14: BOD | BT14: 24 | BU14: =BU8 -> 125 | BV14: 5 | BW14: =LN(BU14-BV14) -> 4.787491743 | BX14: =BV14+EXP(BW14-CC14*CB14) -> 26.12541159 | BZ14: 0.52 | CA14: 0.953 | CB14: =(BZ14*CA14^(BT14-20)) -> 0.4289186656 | CC14: =CC11 -> 4.04975401
A15: Buffer to Water Table (Bwt) (m) | B15: 0.5 | C15: N released (perc+exceed.) (kg/yr) | D15: =SUM(D13:D14) -> 0 | H15: TN% removal | I15: 0.5 | M15: TN infiltrating kg/yr | N15: =$B$9* IF($O$15, $N$14,1) -> 2.268 | O15: FALSE | P15: Coarse Sand | Q15: 3 | R15: 0.35 | S15: 0.08 | U15: Clay loams - massive structured Ksat 0.06 - 0.12m/d | V15: 8 | W15: 4 | X15: =X14-0.125 -> 4.375 | Y15: 10 | AC15: Use secondary treatment | AP15: NB: ratios of bathroom to (bathroom+laundry+kitchen) are same in the two pink boxed areas
A16: Time for accumulation of P(years) | B16: 50 | C16: Enviro.N limit (kg/yr) | D16: =AD2 -> 6.321205588 | H16: Reed bed area (m2) | I16: 7.125542181 | M16: N conc in effluent infiltrating (mg/L) | N16: =1000000*($N$15/ $N$13) -> 18.49597542 | P16: Fine sand, Sandy loams | Q16: 4 | R16: 0.38 | S16: 0.14 | U16: Light clays - strongly structured Ksat 0.12 - 0.5m/d | V16: 9 | W16: 5 | X16: =X15-0.125 -> 4.25 | Y16: 12 | AC16: Use secondary treatment with SSI and a percolation rate of 5 mm/day | AP16: This is a compromise solution to conflicting ratio data. There is no conflict if toilet percentages in AR7:AT7 are same as AR2:AT2
A17: Final area (m2) | B17: =MAX(G10,B18,D17,D18) -> 144.3481445 | C17: Nitrogen area (m2) | D17: =MAX(0,N24) -> 0 | H17: =CONCATENATE("BOD target of 20mg/L is equiv. to ~",TEXT(ROUNDUP(CD13,3),"0.0%")," TN removal.",LEFT(" THIS IS A COMMENT:ROUNDUP needs 3 decimals to give 1 decimal in the %age",0)) -> BOD target of 20mg/L is equiv. to ~56.3% TN removal. | I17: =CONCATENATE("Current Outlet BOD conc. ~ ",TEXT(BX14,"0")," mg/L.") -> Current Outlet BOD conc. ~ 26 mg/L. | M17: ETA | P17: Loams,Clay loams,Silt | Q17: 5 | R17: 0.37 | S17: 0.15 | U17: Light clays - moderately structured Ksat 0.06 - 0.12m/d | V17: 10 | W17: 0 | X17: 4.125 | Y17: 10 | Z17: =AC15 -> Use secondary treatment | AB17: ="" ->  | AC17: Use SSI and use a percolation rate of 5 mm/day
A18: Phosphorus area (m2) | B18: =B11*10000/ ((B13*(B14-B15) /B16) +B12) -> 31.76470588 | C18: =IF(AND(H10,G10>D18),CONCATENATE("Capped H area ",TEXT(G10,"0"),"m2. Hydraulic area (m2)" ),"Hydraulic area (m2)") -> Hydraulic area (m2) | D18: 144.3481445 | H18: % Effective Rainfall | J18: Source: LCC (1999) | M18: N conc. in effluent kg/L | N18: =($N$15 /( ($K$36+$I$36-$G$36 - $J$36 )*$B$19) ) -> 1.67980332e-05 | P18: Clay (light,med,heavy) | Q18: 6 | R18: 0.34 | S18: 0.13 | U18: Light clays - weak. structured or massive Ksat <0.06m/d | V18: 11 | W18: 0 | X18: 4 | Y18: 8 | Z18: =AC15 -> Use secondary treatment | AB18: ="" ->  | AC18: Ameliorate the soil, use secondary treatment with SSI, and use a percolation rate of 5 mm/day
A19: Water balance area (m2) | B19: 144.3481445 | C19: total ETA trench area | D19: =Y50 -> 128.7481445 | M19: Volume percolated L/yr | N19: =$H$36*$B$19 -> 140719.5292 | P19: Link Cell: Root zone soil (starts at P15) | Q19: 3 | R19: =INDEX(R15:R18,$Q19) -> 0.37 | S19: =INDEX(S15:S18,$Q19) -> 0.15 | T19: # Effective porosity field tests A.McCardell 1/2001 | U19: Med. to heavy clays - strong. struct. Ksat 0.06-0.5m/d | V19: 12 | W19: 0 | X19: 3.875 | Y19: 5 | Z19: =AC16 -> Use secondary treatment with SSI and a percolation rate of 5 mm/day | AB19: =AC17 -> Use SSI and use a percolation rate of 5 mm/day
A20: =IF(P25,"Specific Crop Coeff.(grass=1.00)","Crop factor(grass=0.74) ") -> Specific Crop Coeff.(grass=1.00) | B20: 1 | C20: ETA trench length (m) | D20: =$Y$46-2*$F$27 -> 4.951851713 | M20: Mass load perc'+ plant uptake kg/yr | N20: =MIN(($N$18*$N$19),$N$15) -> 2.268 | P20: Link Cell:Trench Soil | Q20: 0 | R20: =INDEX(R13:R18,$Q20) ->  | S20: =INDEX(S13:S18,$Q20) ->  | T20: && AW is a "very small" guestimate | U20: Med. to heavy clays - mod. structured Ksat <0.06m/d | V20: 13 | W20: 0 | X20: 3.75 | Y20: 4 | Z20: =AC16 -> Use secondary treatment with SSI and a percolation rate of 5 mm/day | AB20: =AC17 -> Use SSI and use a percolation rate of 5 mm/day
A21: % Effective Rainfall | B21: 0.85 | C21: =IF(AG$48=1,"number of SSI laterals","number of ETA beds") -> number of SSI laterals | D21: =$AA$45 -> 13 | J21: Source: Dunne & Leopold (1978) | M21: N uptake in hydraulic area kg/yr | N21: =MIN($N$20,$B$10*$B$19/10000) -> 2.268 | U21: Med. to hvy clays - weak. struct. or massive Ksat<0.06m/d | V21: 14 | W21: 0 | X21: 3.625 | Y21: 4 | Z21: =AC16 -> Use secondary treatment with SSI and a percolation rate of 5 mm/day | AB21: =AC17 -> Use SSI and use a percolation rate of 5 mm/day
A22: =CONCATENATE("Percolation (mm/d) ",IF(ISERROR(B22)," WARNING","")) -> Percolation (mm/d) | B22: 5 | C22: =CONCATENATE("beds total ",IF($H$28=0,"","plus separating spaces"),": X Y dimensions = ",TEXT($Y$46,"0.0"),"m x ",TEXT($Y$47,"0.0"),"m Area =",TEXT(AA46,"0")," m2") -> beds total plus separating spaces: X Y dimensions = 5.6m x 26.0m Area =144 m2 | H22: Soil texture in root zone | M22: Actual Mass load percolated kg/yr | N22: =MAX(0,$N$20-$N$21) -> 0 | P22: Set 1 (using an average grass value for each season) | Q22: 0.74 | R22: 0.74 | S22: 0.74 | T22: 0.74 | U22: DISPERSIVE soil (Modified Emerson Aggregate test) | V22: 15 | W22: 0 | X22: 3.5 | Y22: 4 | Z22: =AC18 -> Ameliorate the soil, use secondary treatment with SSI, and use a percolation rate of 5 mm/day | AB22: =AC18 -> Ameliorate the soil, use secondary treatment with SSI, and use a percolation rate of 5 mm/day
M23: N conc in perc'ed kg/L | N23: =$N$22/$N$19 -> 0 | P23: Set 2 Grayson et al.1996. Hydrological Recipes | Q23: 0.78 | R23: 0.75 | S23: 0.66 | T23: 0.74 | U23: Link Cell | V23: 6 | W23: =INDEX(W8:W22,$V23) -> 10 | X23: =INDEX($X$8:$X$22,$V23) -> 5 | Y23: =(INDEX(Y8:Y22,$V23)-INDEX($W8:$W22,$V23))*X4 + INDEX($W8:$W22,$V23) -> 28.83325493 | Z23: =INDEX(Z8:Z22,$V23) -> 0 | AA23: =INDEX(AA8:AA22,$V23) -> 0 | AB23: =INDEX(AB8:AB22,$V23) -> Link cell
A24: Avg depth of root zone (m) | B24: 0.3 | C24: Effective porosity of root zone | D24: 0.37 | E24: Avail.Water Capacity (AWC) of root zone | F24: 0.15 | J24: Source: Dunne & Leopold (1978) | M24: N area | N24: =(1-D16/B9)*10000*(B9/B10) -> -202.6602794 | P24: Set 3 (Using a specified annual crop factor) | Q24: =IF($P$25,Q23,$B$20) -> 0.78 | R24: =IF($P$25,R23,$B$20) -> 0.75 | S24: =IF($P$25,S23,$B$20) -> 0.66 | T24: =IF($P$25,T23,$B$20) -> 0.74 | U24: Choice according to Degree of Treament | W24: =IF( INDEX($W$23:$Y$23, X24)=0, #N/A, INDEX($W$23:$Y$23,X24)) -> 5 | X24: =IF($AF$7=1,1,IF(AND( $AG$48=1,$H$9), 2,3)) -> 2 | Y24: <=index of the 3 cols | Z24: old msg | AC24: repeating units framed in bold
A25: Avg depth bluemetal (etc) in trench below root zone (m) | B25: 0 | C25: Effective porosity of bluemetal in trench below root zone | D25: 0 | E25: Default AWC of bluemetal in trench below root zone | F25: 0 | G25: Trench under root zone <- | P25: TRUE | Q25: Summer | R25: Autumn | S25: Winter | T25: Spring | V25: X axix values for graph | W25: Y axis values for envelope | X25: 1 | Y25: 1 | Z25: =X25+1 -> 2 | AA25: 2 | AB25: 3 | AC25: 3 | AD25: 4 | AE25: 4 | AF25: 5 | AG25: 5 | AH25: 6 | AI25: 6 | AJ25: 7 | AK25: 7 | AL25: 8 | AM25: 8 | AN25: 9 | AO25: 9 | AP25: 10 | AQ25: 10 | AR25: 11 | AS25: 11 | AT25: 12 | AU25: 12 | AV25: 13 | AW25: 13 | AX25: 14 | AY25: 14 | AZ25: 15 | BA25: 15 | BB25: 16 | BC25: 16 | BD25: 17 | BE25: 17 | BF25: 18 | BG25: 18 | BH25: 19 | BI25: 19 | BJ25: 20 | BK25: 20 | BL25: 21 | BM25: 21 | BN25: 22 | BO25: 22 | BP25: 23 | BQ25: 23 | BR25: 24 | BS25: 24 | BT25: 25 | BU25: 25 | BV25: 26 | BW25: 26 | BX25: =BV25+1 -> 27 | BY25: 27 | BZ25: 28 | CA25: 28 | CB25: 29 | CC25: 29 | CD25: 30 | CE25: 30 | CF25: 31 | CG25: 31 | CH25: 32 | CI25: 32 | CJ25: 33 | CK25: 33 | CL25: 34 | CM25: 34 | CN25: 35 | CO25: 35 | CP25: 36 | CQ25: 36 | CR25: 37 | CS25: 37 | CT25: 38 | CU25: 38 | CV25: 39 | CW25: 39 | CX25: 40 | CY25: 40 | CZ25: 41 | DA25: 41 | DB25: 42 | DC25: 42 | DD25: =DB25+1 -> 43 | DE25: 43 | DF25: 44 | DG25: 44 | DH25: 45 | DI25: 45 | DJ25: 46 | DK25: 46 | DL25: 47 | DM25: 47 | DN25: 48 | DO25: 48 | DP25: 49 | DQ25: 49 | DR25: 50 | DS25: 50 | DT25: 51 | DU25: 51
A26: Soil Moisture Holding Capacity: saturation & AWC (mm) | B26: =1000*((($B$24*$D$24 + $B$25*$D$25)*$Y$52) + (($B$24+$B$25)*$D$24)*(1-$Y$52)) -> 111 | C26: =1000*((($B$24*$F$24 + $B$25*$F$25)*$Y$52) + (($B$24+$B$25)*$F$24)*(1-$Y$52)) -> 45 | E26: Land Application Type | P26: ET0 | Q26: =INDEX(Q22:Q24,$Q28) -> 0.78 | R26: =INDEX(R22:R24,$Q28) -> 0.75 | S26: =INDEX(S22:S24,$Q28) -> 0.66 | T26: =INDEX(T22:T24,$Q28) -> 0.74 | V26: =$W$45 -> 0 | X26: =$W$45 -> 0 | Y26: =X26 -> 0 | Z26: =IF(Z25<=$AA$45, (2*$W$45)+Y29+(($AG$48-1)*$H$28),0) -> 2 | AA26: =IF(AA25<=$AA$45, (2*$W$45)+Y29+(($AG$48-1)*$H$28),0) -> 2 | AB26: =IF(AB25<=$AA$45, (2*$W$45)+AA29+(($AG$48-1)*$H$28),0) -> 4 | AC26: =IF(AC25<=$AA$45, (2*$W$45)+AA29+(($AG$48-1)*$H$28),0) -> 4 | AD26: =IF(AD25<=$AA$45, (2*$W$45)+AC29+(($AG$48-1)*$H$28),0) -> 6 | AE26: =IF(AE25<=$AA$45, (2*$W$45)+AC29+(($AG$48-1)*$H$28),0) -> 6 | AF26: =IF(AF25<=$AA$45, (2*$W$45)+AE29+(($AG$48-1)*$H$28),0) -> 8 | AG26: =IF(AG25<=$AA$45, (2*$W$45)+AE29+(($AG$48-1)*$H$28),0) -> 8 | AH26: =IF(AH25<=$AA$45, (2*$W$45)+AG29+(($AG$48-1)*$H$28),0) -> 10 | AI26: =IF(AI25<=$AA$45, (2*$W$45)+AG29+(($AG$48-1)*$H$28),0) -> 10 | AJ26: =IF(AJ25<=$AA$45, (2*$W$45)+AI29+(($AG$48-1)*$H$28),0) -> 12 | AK26: =IF(AK25<=$AA$45, (2*$W$45)+AI29+(($AG$48-1)*$H$28),0) -> 12 | AL26: =IF(AL25<=$AA$45, (2*$W$45)+AK29+(($AG$48-1)*$H$28),0) -> 14 | AM26: =IF(AM25<=$AA$45, (2*$W$45)+AK29+(($AG$48-1)*$H$28),0) -> 14 | AN26: =IF(AN25<=$AA$45, (2*$W$45)+AM29+(($AG$48-1)*$H$28),0) -> 16 | AO26: =IF(AO25<=$AA$45, (2*$W$45)+AM29+(($AG$48-1)*$H$28),0) -> 16 | AP26: =IF(AP25<=$AA$45, (2*$W$45)+AO29+(($AG$48-1)*$H$28),0) -> 18 | AQ26: =IF(AQ25<=$AA$45, (2*$W$45)+AO29+(($AG$48-1)*$H$28),0) -> 18 | AR26: =IF(AR25<=$AA$45, (2*$W$45)+AQ29+(($AG$48-1)*$H$28),0) -> 20 | AS26: =IF(AS25<=$AA$45, (2*$W$45)+AQ29+(($AG$48-1)*$H$28),0) -> 20 | AT26: =IF(AT25<=$AA$45, (2*$W$45)+AS29+(($AG$48-1)*$H$28),0) -> 22 | AU26: =IF(AU25<=$AA$45, (2*$W$45)+AS29+(($AG$48-1)*$H$28),0) -> 22 | AV26: =IF(AV25<=$AA$45, (2*$W$45)+AU29+(($AG$48-1)*$H$28),0) -> 24 | AW26: =IF(AW25<=$AA$45, (2*$W$45)+AU29+(($AG$48-1)*$H$28),0) -> 24 | AX26: =IF(AX25<=$AA$45, (2*$W$45)+AW29+(($AG$48-1)*$H$28),0) -> 0 | AY26: =IF(AY25<=$AA$45, (2*$W$45)+AW29+(($AG$48-1)*$H$28),0) -> 0 | AZ26: =IF(AZ25<=$AA$45, (2*$W$45)+AY29+(($AG$48-1)*$H$28),0) -> 0 | BA26: =IF(BA25<=$AA$45, (2*$W$45)+AY29+(($AG$48-1)*$H$28),0) -> 0 | BB26: =IF(BB25<=$AA$45, (2*$W$45)+BA29+(($AG$48-1)*$H$28),0) -> 0 | BC26: =IF(BC25<=$AA$45, (2*$W$45)+BA29+(($AG$48-1)*$H$28),0) -> 0 | BD26: =IF(BD25<=$AA$45, (2*$W$45)+BC29+(($AG$48-1)*$H$28),0) -> 0 | BE26: =IF(BE25<=$AA$45, (2*$W$45)+BC29+(($AG$48-1)*$H$28),0) -> 0 | BF26: =IF(BF25<=$AA$45, (2*$W$45)+BE29+(($AG$48-1)*$H$28),0) -> 0 | BG26: =IF(BG25<=$AA$45, (2*$W$45)+BE29+(($AG$48-1)*$H$28),0) -> 0 | BH26: =IF(BH25<=$AA$45, (2*$W$45)+BG29+(($AG$48-1)*$H$28),0) -> 0 | BI26: =IF(BI25<=$AA$45, (2*$W$45)+BG29+(($AG$48-1)*$H$28),0) -> 0 | BJ26: =IF(BJ25<=$AA$45, (2*$W$45)+BI29+(($AG$48-1)*$H$28),0) -> 0 | BK26: =IF(BK25<=$AA$45, (2*$W$45)+BI29+(($AG$48-1)*$H$28),0) -> 0 | BL26: =IF(BL25<=$AA$45, (2*$W$45)+BK29+(($AG$48-1)*$H$28),0) -> 0 | BM26: =IF(BM25<=$AA$45, (2*$W$45)+BK29+(($AG$48-1)*$H$28),0) -> 0 | BN26: =IF(BN25<=$AA$45, (2*$W$45)+BM29+(($AG$48-1)*$H$28),0) -> 0 | BO26: =IF(BO25<=$AA$45, (2*$W$45)+BM29+(($AG$48-1)*$H$28),0) -> 0 | BP26: =IF(BP25<=$AA$45, (2*$W$45)+BO29+(($AG$48-1)*$H$28),0) -> 0 | BQ26: =IF(BQ25<=$AA$45, (2*$W$45)+BO29+(($AG$48-1)*$H$28),0) -> 0 | BR26: =IF(BR25<=$AA$45, (2*$W$45)+BQ29+(($AG$48-1)*$H$28),0) -> 0 | BS26: =IF(BS25<=$AA$45, (2*$W$45)+BQ29+(($AG$48-1)*$H$28),0) -> 0 | BT26: =IF(BT25<=$AA$45, (2*$W$45)+BS29+(($AG$48-1)*$H$28),0) -> 0 | BU26: =IF(BU25<=$AA$45, (2*$W$45)+BS29+(($AG$48-1)*$H$28),0) -> 0 | BV26: =IF(BV25<=$AA$45, (2*$W$45)+BU29+(($AG$48-1)*$H$28),0) -> 0 | BW26: =IF(BW25<=$AA$45, (2*$W$45)+BU29+(($AG$48-1)*$H$28),0) -> 0 | BX26: =IF(BX25<=$AA$45, (2*$W$45)+BW29+(($AG$48-1)*$H$28),0) -> 0 | BY26: =IF(BY25<=$AA$45, (2*$W$45)+BW29+(($AG$48-1)*$H$28),0) -> 0 | BZ26: =IF(BZ25<=$AA$45, (2*$W$45)+BY29+(($AG$48-1)*$H$28),0) -> 0 | CA26: =IF(CA25<=$AA$45, (2*$W$45)+BY29+(($AG$48-1)*$H$28),0) -> 0 | CB26: =IF(CB25<=$AA$45, (2*$W$45)+CA29+(($AG$48-1)*$H$28),0) -> 0 | CC26: =IF(CC25<=$AA$45, (2*$W$45)+CA29+(($AG$48-1)*$H$28),0) -> 0 | CD26: =IF(CD25<=$AA$45, (2*$W$45)+CC29+(($AG$48-1)*$H$28),0) -> 0 | CE26: =IF(CE25<=$AA$45, (2*$W$45)+CC29+(($AG$48-1)*$H$28),0) -> 0 | CF26: =IF(CF25<=$AA$45, (2*$W$45)+CE29+(($AG$48-1)*$H$28),0) -> 0 | CG26: =IF(CG25<=$AA$45, (2*$W$45)+CE29+(($AG$48-1)*$H$28),0) -> 0 | CH26: =IF(CH25<=$AA$45, (2*$W$45)+CG29+(($AG$48-1)*$H$28),0) -> 0 | CI26: =IF(CI25<=$AA$45, (2*$W$45)+CG29+(($AG$48-1)*$H$28),0) -> 0 | CJ26: =IF(CJ25<=$AA$45, (2*$W$45)+CI29+(($AG$48-1)*$H$28),0) -> 0 | CK26: =IF(CK25<=$AA$45, (2*$W$45)+CI29+(($AG$48-1)*$H$28),0) -> 0 | CL26: =IF(CL25<=$AA$45, (2*$W$45)+CK29+(($AG$48-1)*$H$28),0) -> 0 | CM26: =IF(CM25<=$AA$45, (2*$W$45)+CK29+(($AG$48-1)*$H$28),0) -> 0 | CN26: =IF(CN25<=$AA$45, (2*$W$45)+CM29+(($AG$48-1)*$H$28),0) -> 0 | CO26: =IF(CO25<=$AA$45, (2*$W$45)+CM29+(($AG$48-1)*$H$28),0) -> 0 | CP26: =IF(CP25<=$AA$45, (2*$W$45)+CO29+(($AG$48-1)*$H$28),0) -> 0 | CQ26: =IF(CQ25<=$AA$45, (2*$W$45)+CO29+(($AG$48-1)*$H$28),0) -> 0 | CR26: =IF(CR25<=$AA$45, (2*$W$45)+CQ29+(($AG$48-1)*$H$28),0) -> 0 | CS26: =IF(CS25<=$AA$45, (2*$W$45)+CQ29+(($AG$48-1)*$H$28),0) -> 0 | CT26: =IF(CT25<=$AA$45, (2*$W$45)+CS29+(($AG$48-1)*$H$28),0) -> 0 | CU26: =IF(CU25<=$AA$45, (2*$W$45)+CS29+(($AG$48-1)*$H$28),0) -> 0 | CV26: =IF(CV25<=$AA$45, (2*$W$45)+CU29+(($AG$48-1)*$H$28),0) -> 0 | CW26: =IF(CW25<=$AA$45, (2*$W$45)+CU29+(($AG$48-1)*$H$28),0) -> 0 | CX26: =IF(CX25<=$AA$45, (2*$W$45)+CW29+(($AG$48-1)*$H$28),0) -> 0 | CY26: =IF(CY25<=$AA$45, (2*$W$45)+CW29+(($AG$48-1)*$H$28),0) -> 0 | CZ26: =IF(CZ25<=$AA$45, (2*$W$45)+CY29+(($AG$48-1)*$H$28),0) -> 0 | DA26: =IF(DA25<=$AA$45, (2*$W$45)+CY29+(($AG$48-1)*$H$28),0) -> 0 | DB26: =IF(DB25<=$AA$45, (2*$W$45)+DA29+(($AG$48-1)*$H$28),0) -> 0 | DC26: =IF(DC25<=$AA$45, (2*$W$45)+DA29+(($AG$48-1)*$H$28),0) -> 0 | DD26: =IF(DD25<=$AA$45, (2*$W$45)+DC29+(($AG$48-1)*$H$28),0) -> 0 | DE26: =IF(DE25<=$AA$45, (2*$W$45)+DC29+(($AG$48-1)*$H$28),0) -> 0 | DF26: =IF(DF25<=$AA$45, (2*$W$45)+DE29+(($AG$48-1)*$H$28),0) -> 0 | DG26: =IF(DG25<=$AA$45, (2*$W$45)+DE29+(($AG$48-1)*$H$28),0) -> 0 | DH26: =IF(DH25<=$AA$45, (2*$W$45)+DG29+(($AG$48-1)*$H$28),0) -> 0 | DI26: =IF(DI25<=$AA$45, (2*$W$45)+DG29+(($AG$48-1)*$H$28),0) -> 0 | DJ26: =IF(DJ25<=$AA$45, (2*$W$45)+DI29+(($AG$48-1)*$H$28),0) -> 0 | DK26: =IF(DK25<=$AA$45, (2*$W$45)+DI29+(($AG$48-1)*$H$28),0) -> 0 | DL26: =IF(DL25<=$AA$45, (2*$W$45)+DK29+(($AG$48-1)*$H$28),0) -> 0 | DM26: =IF(DM25<=$AA$45, (2*$W$45)+DK29+(($AG$48-1)*$H$28),0) -> 0 | DN26: =IF(DN25<=$AA$45, (2*$W$45)+DM29+(($AG$48-1)*$H$28),0) -> 0 | DO26: =IF(DO25<=$AA$45, (2*$W$45)+DM29+(($AG$48-1)*$H$28),0) -> 0 | DP26: =IF(DP25<=$AA$45, (2*$W$45)+DO29+(($AG$48-1)*$H$28),0) -> 0 | DQ26: =IF(DQ25<=$AA$45, (2*$W$45)+DO29+(($AG$48-1)*$H$28),0) -> 0 | DR26: =IF(DR25<=$AA$45, (2*$W$45)+DQ29+(($AG$48-1)*$H$28),0) -> 0 | DS26: =IF(DS25<=$AA$45, (2*$W$45)+DQ29+(($AG$48-1)*$H$28),0) -> 0 | DT26: =IF(DT25<=$AA$45, (2*$W$45)+DS29+(($AG$48-1)*$H$28),0) -> 0 | DU26: =IF(DU25<=$AA$45, (2*$W$45)+DS29+(($AG$48-1)*$H$28),0) -> 0
A27: Permissible percentile exceedence | B27: 0.05 | C27: =IF(AG$48=1,"SSI laterals pipe separation (m)","ETA trench width (m)") -> SSI laterals pipe separation (m) | D27: 2 | E27: Lateral seepage width (m) | F27: 0.3 | G27: ETA trench separation | H27: 2 | P27: Crop Factor | Q27: =Q26*IF($P$25, $B$20,1) -> 0.78 | R27: =R26*IF($P$25, $B$20,1) -> 0.75 | S27: =S26*IF($P$25, $B$20,1) -> 0.66 | T27: =T26*IF($P$25, $B$20,1) -> 0.74 | V27: =$W$45 -> 0 | X27: =X$26+$D$27 -> 2 | Y27: =X26 -> 0 | Z27: =IF(Z25<=$AA$45, Z26+ $D$27, 0) -> 4 | AA27: =AA26 -> 2 | AB27: =IF(AB25<=$AA$45, AB26+ $D$27, 0) -> 6 | AC27: =AC26 -> 4 | AD27: =IF(AD25<=$AA$45, AD26+ $D$27, 0) -> 8 | AE27: =AE26 -> 6 | AF27: =IF(AF25<=$AA$45, AF26+ $D$27, 0) -> 10 | AG27: =AG26 -> 8 | AH27: =IF(AH25<=$AA$45, AH26+ $D$27, 0) -> 12 | AI27: =AI26 -> 10 | AJ27: =IF(AJ25<=$AA$45, AJ26+ $D$27, 0) -> 14 | AK27: =AK26 -> 12 | AL27: =IF(AL25<=$AA$45, AL26+ $D$27, 0) -> 16 | AM27: =AM26 -> 14 | AN27: =IF(AN25<=$AA$45, AN26+ $D$27, 0) -> 18 | AO27: =AO26 -> 16 | AP27: =IF(AP25<=$AA$45, AP26+ $D$27, 0) -> 20 | AQ27: =AQ26 -> 18 | AR27: =IF(AR25<=$AA$45, AR26+ $D$27, 0) -> 22 | AS27: =AS26 -> 20 | AT27: =IF(AT25<=$AA$45, AT26+ $D$27, 0) -> 24 | AU27: =AU26 -> 22 | AV27: =IF(AV25<=$AA$45, AV26+ $D$27, 0) -> 26 | AW27: =AW26 -> 24 | AX27: =IF(AX25<=$AA$45, AX26+ $D$27, 0) -> 0 | AY27: =AY26 -> 0 | AZ27: =IF(AZ25<=$AA$45, AZ26+ $D$27, 0) -> 0 | BA27: =BA26 -> 0 | BB27: =IF(BB25<=$AA$45, BB26+ $D$27, 0) -> 0 | BC27: =BC26 -> 0 | BD27: =IF(BD25<=$AA$45, BD26+ $D$27, 0) -> 0 | BE27: =BE26 -> 0 | BF27: =IF(BF25<=$AA$45, BF26+ $D$27, 0) -> 0 | BG27: =BG26 -> 0 | BH27: =IF(BH25<=$AA$45, BH26+ $D$27, 0) -> 0 | BI27: =BI26 -> 0 | BJ27: =IF(BJ25<=$AA$45, BJ26+ $D$27, 0) -> 0 | BK27: =BK26 -> 0 | BL27: =IF(BL25<=$AA$45, BL26+ $D$27, 0) -> 0 | BM27: =BM26 -> 0 | BN27: =IF(BN25<=$AA$45, BN26+ $D$27, 0) -> 0 | BO27: =BO26 -> 0 | BP27: =IF(BP25<=$AA$45, BP26+ $D$27, 0) -> 0 | BQ27: =BQ26 -> 0 | BR27: =IF(BR25<=$AA$45, BR26+ $D$27, 0) -> 0 | BS27: =BS26 -> 0 | BT27: =IF(BT25<=$AA$45, BT26+ $D$27, 0) -> 0 | BU27: =BU26 -> 0 | BV27: =IF(BV25<=$AA$45, BV26+ $D$27, 0) -> 0 | BW27: =BW26 -> 0 | BX27: =IF(BX25<=$AA$45, BX26+ $D$27, 0) -> 0 | BY27: =BY26 -> 0 | BZ27: =IF(BZ25<=$AA$45, BZ26+ $D$27, 0) -> 0 | CA27: =CA26 -> 0 | CB27: =IF(CB25<=$AA$45, CB26+ $D$27, 0) -> 0 | CC27: =CC26 -> 0 | CD27: =IF(CD25<=$AA$45, CD26+ $D$27, 0) -> 0 | CE27: =CE26 -> 0 | CF27: =IF(CF25<=$AA$45, CF26+ $D$27, 0) -> 0 | CG27: =CG26 -> 0 | CH27: =IF(CH25<=$AA$45, CH26+ $D$27, 0) -> 0 | CI27: =CI26 -> 0 | CJ27: =IF(CJ25<=$AA$45, CJ26+ $D$27, 0) -> 0 | CK27: =CK26 -> 0 | CL27: =IF(CL25<=$AA$45, CL26+ $D$27, 0) -> 0 | CM27: =CM26 -> 0 | CN27: =IF(CN25<=$AA$45, CN26+ $D$27, 0) -> 0 | CO27: =CO26 -> 0 | CP27: =IF(CP25<=$AA$45, CP26+ $D$27, 0) -> 0 | CQ27: =CQ26 -> 0 | CR27: =IF(CR25<=$AA$45, CR26+ $D$27, 0) -> 0 | CS27: =CS26 -> 0 | CT27: =IF(CT25<=$AA$45, CT26+ $D$27, 0) -> 0 | CU27: =CU26 -> 0 | CV27: =IF(CV25<=$AA$45, CV26+ $D$27, 0) -> 0 | CW27: =CW26 -> 0 | CX27: =IF(CX25<=$AA$45, CX26+ $D$27, 0) -> 0 | CY27: =CY26 -> 0 | CZ27: =IF(CZ25<=$AA$45, CZ26+ $D$27, 0) -> 0 | DA27: =DA26 -> 0 | DB27: =IF(DB25<=$AA$45, DB26+ $D$27, 0) -> 0 | DC27: =DC26 -> 0 | DD27: =IF(DD25<=$AA$45, DD26+ $D$27, 0) -> 0 | DE27: =DE26 -> 0 | DF27: =IF(DF25<=$AA$45, DF26+ $D$27, 0) -> 0 | DG27: =DG26 -> 0 | DH27: =IF(DH25<=$AA$45, DH26+ $D$27, 0) -> 0 | DI27: =DI26 -> 0 | DJ27: =IF(DJ25<=$AA$45, DJ26+ $D$27, 0) -> 0 | DK27: =DK26 -> 0 | DL27: =IF(DL25<=$AA$45, DL26+ $D$27, 0) -> 0 | DM27: =DM26 -> 0 | DN27: =IF(DN25<=$AA$45, DN26+ $D$27, 0) -> 0 | DO27: =DO26 -> 0 | DP27: =IF(DP25<=$AA$45, DP26+ $D$27, 0) -> 0 | DQ27: =DQ26 -> 0 | DR27: =IF(DR25<=$AA$45, DR26+ $D$27, 0) -> 0 | DS27: =DS26 -> 0 | DT27: =IF(DT25<=$AA$45, DT26+ $D$27, 0) -> 0 | DU27: =DU26 -> 0
A28: Minimum effluent application (mm/day/m2) | B28: =B7/B19 -> 2.437856068 | F28: =AA45 -> 13 | G28: ETA bed separation | H28: =H27-2*F27 -> 1.4 | P28: Set of figures choosen | Q28: 3 | V28: =$Y$46-$W$45 -> 5.551851713 | X28: =X27 -> 2 | Y28: =X26 -> 0 | Z28: =Z27 -> 4 | AA28: =AA26 -> 2 | AB28: =AB27 -> 6 | AC28: =AC26 -> 4 | AD28: =AD27 -> 8 | AE28: =AE26 -> 6 | AF28: =AF27 -> 10 | AG28: =AG26 -> 8 | AH28: =AH27 -> 12 | AI28: =AI26 -> 10 | AJ28: =AJ27 -> 14 | AK28: =AK26 -> 12 | AL28: =AL27 -> 16 | AM28: =AM26 -> 14 | AN28: =AN27 -> 18 | AO28: =AO26 -> 16 | AP28: =AP27 -> 20 | AQ28: =AQ26 -> 18 | AR28: =AR27 -> 22 | AS28: =AS26 -> 20 | AT28: =AT27 -> 24 | AU28: =AU26 -> 22 | AV28: =AV27 -> 26 | AW28: =AW26 -> 24 | AX28: =AX27 -> 0 | AY28: =AY26 -> 0 | AZ28: =AZ27 -> 0 | BA28: =BA26 -> 0 | BB28: =BB27 -> 0 | BC28: =BC26 -> 0 | BD28: =BD27 -> 0 | BE28: =BE26 -> 0 | BF28: =BF27 -> 0 | BG28: =BG26 -> 0 | BH28: =BH27 -> 0 | BI28: =BI26 -> 0 | BJ28: =BJ27 -> 0 | BK28: =BK26 -> 0 | BL28: =BL27 -> 0 | BM28: =BM26 -> 0 | BN28: =BN27 -> 0 | BO28: =BO26 -> 0 | BP28: =BP27 -> 0 | BQ28: =BQ26 -> 0 | BR28: =BR27 -> 0 | BS28: =BS26 -> 0 | BT28: =BT27 -> 0 | BU28: =BU26 -> 0 | BV28: =BV27 -> 0 | BW28: =BW26 -> 0 | BX28: =BX27 -> 0 | BY28: 0 | BZ28: =BZ27 -> 0 | CA28: 0 | CB28: =CB27 -> 0 | CC28: 0 | CD28: =CD27 -> 0 | CE28: 0 | CF28: =CF27 -> 0 | CG28: 0 | CH28: =CH27 -> 0 | CI28: 0 | CJ28: =CJ27 -> 0 | CK28: 0 | CL28: =CL27 -> 0 | CM28: 0 | CN28: =CN27 -> 0 | CO28: 0 | CP28: =CP27 -> 0 | CQ28: 0 | CR28: =CR27 -> 0 | CS28: 0 | CT28: =CT27 -> 0 | CU28: 0 | CV28: =CV27 -> 0 | CW28: 0 | CX28: =CX27 -> 0 | CY28: 0 | CZ28: =CZ27 -> 0 | DA28: 0 | DB28: =DB27 -> 0 | DC28: 0 | DD28: =DD27 -> 0 | DE28: 0 | DF28: =DF27 -> 0 | DG28: 0 | DH28: =DH27 -> 0 | DI28: 0 | DJ28: =DJ27 -> 0 | DK28: 0 | DL28: =DL27 -> 0 | DM28: 0 | DN28: =DN27 -> 0 | DO28: 0 | DP28: =DP27 -> 0 | DQ28: 0 | DR28: =DR27 -> 0 | DS28: 0 | DT28: =DT27 -> 0 | DU28: 0
V29: =V28 -> 5.551851713 | X29: =X27 -> 2 | Y29: =X27 -> 2 | Z29: =Z27 -> 4 | AA29: =Z29 -> 4 | AB29: =AB27 -> 6 | AC29: =AB29 -> 6 | AD29: =AD27 -> 8 | AE29: =AD29 -> 8 | AF29: =AF27 -> 10 | AG29: =AF29 -> 10 | AH29: =AH27 -> 12 | AI29: =AH29 -> 12 | AJ29: =AJ27 -> 14 | AK29: =AJ29 -> 14 | AL29: =AL27 -> 16 | AM29: =AL29 -> 16 | AN29: =AN27 -> 18 | AO29: =AN29 -> 18 | AP29: =AP27 -> 20 | AQ29: =AP29 -> 20 | AR29: =AR27 -> 22 | AS29: =AR29 -> 22 | AT29: =AT27 -> 24 | AU29: =AT29 -> 24 | AV29: =AV27 -> 26 | AW29: =AV29 -> 26 | AX29: =AX27 -> 0 | AY29: =AX29 -> 0 | AZ29: =AZ27 -> 0 | BA29: =AZ29 -> 0 | BB29: =BB27 -> 0 | BC29: =BB29 -> 0 | BD29: =BD27 -> 0 | BE29: =BD29 -> 0 | BF29: =BF27 -> 0 | BG29: =BF29 -> 0 | BH29: =BH27 -> 0 | BI29: =BH29 -> 0 | BJ29: =BJ27 -> 0 | BK29: =BJ29 -> 0 | BL29: =BL27 -> 0 | BM29: =BL29 -> 0 | BN29: =BN27 -> 0 | BO29: =BN29 -> 0 | BP29: =BP27 -> 0 | BQ29: =BP29 -> 0 | BR29: =BR27 -> 0 | BS29: =BR29 -> 0 | BT29: =BT27 -> 0 | BU29: =BT29 -> 0 | BV29: =BV27 -> 0 | BW29: =BV29 -> 0 | BX29: =BX27 -> 0 | BY29: 0 | BZ29: =BZ27 -> 0 | CA29: 0 | CB29: =CB27 -> 0 | CC29: 0 | CD29: =CD27 -> 0 | CE29: 0 | CF29: =CF27 -> 0 | CG29: 0 | CH29: =CH27 -> 0 | CI29: 0 | CJ29: =CJ27 -> 0 | CK29: 0 | CL29: =CL27 -> 0 | CM29: 0 | CN29: =CN27 -> 0 | CO29: 0 | CP29: =CP27 -> 0 | CQ29: 0 | CR29: =CR27 -> 0 | CS29: 0 | CT29: =CT27 -> 0 | CU29: 0 | CV29: =CV27 -> 0 | CW29: 0 | CX29: =CX27 -> 0 | CY29: 0 | CZ29: =CZ27 -> 0 | DA29: 0 | DB29: =DB27 -> 0 | DC29: 0 | DD29: =DD27 -> 0 | DE29: 0 | DF29: =DF27 -> 0 | DG29: 0 | DH29: =DH27 -> 0 | DI29: 0 | DJ29: =DJ27 -> 0 | DK29: 0 | DL29: =DL27 -> 0 | DM29: 0 | DN29: =DN27 -> 0 | DO29: 0 | DP29: =DP27 -> 0 | DQ29: 0 | DR29: =DR27 -> 0 | DS29: 0 | DT29: =DT27 -> 0 | DU29: 0
A30: Exceedence (L) | B30: =J34*B19 -> 0
B31: 0.9452054795 | V31: 0 | W31: =$Y$47 -> 26
G32: Evapo-Trans. (mm) | I32: Rainfall Infiltrating (mm) | J32: Exceedence (mm) | K32: Effluent Irrigation Rate (mm/day) | L32: Actual Soil Moisture (mm) | V32: =$Y$46 -> 5.551851713 | W32: =$Y$47 -> 26
F33: Maximum | I33: =MAX(I38:I7707) -> 104.6398904 | J33: =MAX(J38:J7707) -> 2.437856068 | K33: =MAX(K38:K7707) -> 2.437856068 | L33: =MAX(L38:L7707) -> 113.4378561
F34: Permissible | J34: =PERCENTILE(J$38:J$7707, 1-$B$27) -> 0 | V34: =V32 -> 5.551851713 | X34: 0 | Z34: =IF(Z27=0,0,Z26-$W$45) -> 2 | AB34: =IF(AB27=0,0,AB26-$W$45) -> 4 | AD34: =IF(AD27=0,0,AD26-$W$45) -> 6 | AF34: =IF(AF27=0,0,AF26-$W$45) -> 8 | AH34: =IF(AH27=0,0,AH26-$W$45) -> 10 | AJ34: =IF(AJ27=0,0,AJ26-$W$45) -> 12 | AL34: =IF(AL27=0,0,AL26-$W$45) -> 14 | AN34: =IF(AN27=0,0,AN26-$W$45) -> 16 | AP34: =IF(AP27=0,0,AP26-$W$45) -> 18 | AR34: =IF(AR27=0,0,AR26-$W$45) -> 20 | AT34: =IF(AT27=0,0,AT26-$W$45) -> 22 | AV34: =IF(AV27=0,0,AV26-$W$45) -> 24 | AX34: =IF(AX27=0,0,AX26-$W$45) -> 0 | AZ34: =IF(AZ27=0,0,AZ26-$W$45) -> 0 | BB34: =IF(BB27=0,0,BB26-$W$45) -> 0 | BD34: =IF(BD27=0,0,BD26-$W$45) -> 0 | BF34: =IF(BF27=0,0,BF26-$W$45) -> 0 | BH34: =IF(BH27=0,0,BH26-$W$45) -> 0 | BJ34: =IF(BJ27=0,0,BJ26-$W$45) -> 0 | BL34: =IF(BL27=0,0,BL26-$W$45) -> 0 | BN34: =IF(BN27=0,0,BN26-$W$45) -> 0 | BP34: =IF(BP27=0,0,BP26-$W$45) -> 0 | BR34: =IF(BR27=0,0,BR26-$W$45) -> 0 | BT34: =IF(BT27=0,0,BT26-$W$45) -> 0 | BV34: =IF(BV27=0,0,BV26-$W$45) -> 0 | BX34: =IF(BX27=0,0,BX26-$W$45) -> 0 | BZ34: =IF(BZ27=0,0,BZ26-$W$45) -> 0 | CB34: =IF(CB27=0,0,CB26-$W$45) -> 0 | CD34: =IF(CD27=0,0,CD26-$W$45) -> 0 | CF34: =IF(CF27=0,0,CF26-$W$45) -> 0 | CH34: =IF(CH27=0,0,CH26-$W$45) -> 0 | CJ34: =IF(CJ27=0,0,CJ26-$W$45) -> 0 | CL34: =IF(CL27=0,0,CL26-$W$45) -> 0 | CN34: =IF(CN27=0,0,CN26-$W$45) -> 0 | CP34: =IF(CP27=0,0,CP26-$W$45) -> 0 | CR34: =IF(CR27=0,0,CR26-$W$45) -> 0 | CT34: =IF(CT27=0,0,CT26-$W$45) -> 0 | CV34: =IF(CV27=0,0,CV26-$W$45) -> 0 | CX34: =IF(CX27=0,0,CX26-$W$45) -> 0 | CZ34: =IF(CZ27=0,0,CZ26-$W$45) -> 0 | DB34: =IF(DB27=0,0,DB26-$W$45) -> 0 | DD34: =IF(DD27=0,0,DD26-$W$45) -> 0 | DF34: =IF(DF27=0,0,DF26-$W$45) -> 0 | DH34: =IF(DH27=0,0,DH26-$W$45) -> 0 | DJ34: =IF(DJ27=0,0,DJ26-$W$45) -> 0 | DL34: =IF(DL27=0,0,DL26-$W$45) -> 0 | DN34: =IF(DN27=0,0,DN26-$W$45) -> 0 | DP34: =IF(DP27=0,0,DP26-$W$45) -> 0 | DR34: =IF(DR27=0,0,DR26-$W$45) -> 0 | DT34: =IF(DT27=0,0,DT26-$W$45) -> 0
F35: Minimum | I35: =MIN(I38:I7707) -> 0 | J35: =MIN(J38:J7707) -> 0 | K35: =MIN(K38:K7707) -> 0 | L35: =MIN(L38:L7707) -> 2.780059181 | V35: =V32 -> 5.551851713 | X35: =X29+$W$45 -> 2 | Z35: =IF(Z27=0,0,Z29+$W$45) -> 4 | AB35: =IF(AB27=0,0,AB29+$W$45) -> 6 | AD35: =IF(AD27=0,0,AD29+$W$45) -> 8 | AF35: =IF(AF27=0,0,AF29+$W$45) -> 10 | AH35: =IF(AH27=0,0,AH29+$W$45) -> 12 | AJ35: =IF(AJ27=0,0,AJ29+$W$45) -> 14 | AL35: =IF(AL27=0,0,AL29+$W$45) -> 16 | AN35: =IF(AN27=0,0,AN29+$W$45) -> 18 | AP35: =IF(AP27=0,0,AP29+$W$45) -> 20 | AR35: =IF(AR27=0,0,AR29+$W$45) -> 22 | AT35: =IF(AT27=0,0,AT29+$W$45) -> 24 | AV35: =IF(AV27=0,0,AV29+$W$45) -> 26 | AX35: =IF(AX27=0,0,AX29+$W$45) -> 0 | AZ35: =IF(AZ27=0,0,AZ29+$W$45) -> 0 | BB35: =IF(BB27=0,0,BB29+$W$45) -> 0 | BD35: =IF(BD27=0,0,BD29+$W$45) -> 0 | BF35: =IF(BF27=0,0,BF29+$W$45) -> 0 | BH35: =IF(BH27=0,0,BH29+$W$45) -> 0 | BJ35: =IF(BJ27=0,0,BJ29+$W$45) -> 0 | BL35: =IF(BL27=0,0,BL29+$W$45) -> 0 | BN35: =IF(BN27=0,0,BN29+$W$45) -> 0 | BP35: =IF(BP27=0,0,BP29+$W$45) -> 0 | BR35: =IF(BR27=0,0,BR29+$W$45) -> 0 | BT35: =IF(BT27=0,0,BT29+$W$45) -> 0 | BV35: =IF(BV27=0,0,BV29+$W$45) -> 0 | BX35: =IF(BX27=0,0,BX29+$W$45) -> 0 | BZ35: =IF(BZ27=0,0,BZ29+$W$45) -> 0 | CB35: =IF(CB27=0,0,CB29+$W$45) -> 0 | CD35: =IF(CD27=0,0,CD29+$W$45) -> 0 | CF35: =IF(CF27=0,0,CF29+$W$45) -> 0 | CH35: =IF(CH27=0,0,CH29+$W$45) -> 0 | CJ35: =IF(CJ27=0,0,CJ29+$W$45) -> 0 | CL35: =IF(CL27=0,0,CL29+$W$45) -> 0 | CN35: =IF(CN27=0,0,CN29+$W$45) -> 0 | CP35: =IF(CP27=0,0,CP29+$W$45) -> 0 | CR35: =IF(CR27=0,0,CR29+$W$45) -> 0 | CT35: =IF(CT27=0,0,CT29+$W$45) -> 0 | CV35: =IF(CV27=0,0,CV29+$W$45) -> 0 | CX35: =IF(CX27=0,0,CX29+$W$45) -> 0 | CZ35: =IF(CZ27=0,0,CZ29+$W$45) -> 0 | DB35: =IF(DB27=0,0,DB29+$W$45) -> 0 | DD35: =IF(DD27=0,0,DD29+$W$45) -> 0 | DF35: =IF(DF27=0,0,DF29+$W$45) -> 0 | DH35: =IF(DH27=0,0,DH29+$W$45) -> 0 | DJ35: =IF(DJ27=0,0,DJ29+$W$45) -> 0 | DL35: =IF(DL27=0,0,DL29+$W$45) -> 0 | DN35: =IF(DN27=0,0,DN29+$W$45) -> 0 | DP35: =IF(DP27=0,0,DP29+$W$45) -> 0 | DR35: =IF(DR27=0,0,DR29+$W$45) -> 0 | DT35: =IF(DT27=0,0,DT29+$W$45) -> 0
F36: Yearly avg. | G36: =AVERAGE(G$38:G$7707)*365 -> 1113.652838 | H36: =AVERAGE(H$38:H$7707)*365 -> 974.8620579 | I36: =AVERAGE(I$38:I$7707)*365 -> 1199.634425 | J36: =AVERAGE(J$38:J$7707)*365 -> 40.33463525 | K36: =AVERAGE(K$38:K$7707)*365 -> 889.701452
A37: Year | B37: Month | C37: Day | D37: Evap. (mm) | E37: Rainfall (mm) | F37: Crop Factor | G37: Evapo-Trans. (mm) | H37: Per-colation (mm/day) | I37: Rainfall Infiltrating (mm) | J37: Exceedence (mm) | K37: Effluent Irrigation Rate (mm/day) | L37: Actual Soil Moisture (mm) | V37: =V31 -> 0 | X37: =IF(X26=0,0,X26-$W$45) -> 0 | Z37: =IF(Z26=0,0,Z26-$W$45) -> 2 | AB37: =IF(AB26=0,0,AB26-$W$45) -> 4 | AD37: =IF(AD26=0,0,AD26-$W$45) -> 6 | AF37: =IF(AF26=0,0,AF26-$W$45) -> 8 | AH37: =IF(AH26=0,0,AH26-$W$45) -> 10 | AJ37: =IF(AJ26=0,0,AJ26-$W$45) -> 12 | AL37: =IF(AL26=0,0,AL26-$W$45) -> 14 | AN37: =IF(AN26=0,0,AN26-$W$45) -> 16 | AP37: =IF(AP26=0,0,AP26-$W$45) -> 18 | AR37: =IF(AR26=0,0,AR26-$W$45) -> 20 | AT37: =IF(AT26=0,0,AT26-$W$45) -> 22 | AV37: =IF(AV26=0,0,AV26-$W$45) -> 24 | AX37: =IF(AX26=0,0,AX26-$W$45) -> 0 | AZ37: =IF(AZ26=0,0,AZ26-$W$45) -> 0 | BB37: =IF(BB26=0,0,BB26-$W$45) -> 0 | BD37: =IF(BD26=0,0,BD26-$W$45) -> 0 | BF37: =IF(BF26=0,0,BF26-$W$45) -> 0 | BH37: =IF(BH26=0,0,BH26-$W$45) -> 0 | BJ37: =IF(BJ26=0,0,BJ26-$W$45) -> 0 | BL37: =IF(BL26=0,0,BL26-$W$45) -> 0 | BN37: =IF(BN26=0,0,BN26-$W$45) -> 0 | BP37: =IF(BP26=0,0,BP26-$W$45) -> 0 | BR37: =IF(BR26=0,0,BR26-$W$45) -> 0 | BT37: =IF(BT26=0,0,BT26-$W$45) -> 0 | BV37: =IF(BV26=0,0,BV26-$W$45) -> 0 | BX37: =IF(BX26=0,0,BX26-$W$45) -> 0 | BZ37: =IF(BZ26=0,0,BZ26-$W$45) -> 0 | CB37: =IF(CB26=0,0,CB26-$W$45) -> 0 | CD37: =IF(CD26=0,0,CD26-$W$45) -> 0 | CF37: =IF(CF26=0,0,CF26-$W$45) -> 0 | CH37: =IF(CH26=0,0,CH26-$W$45) -> 0 | CJ37: =IF(CJ26=0,0,CJ26-$W$45) -> 0 | CL37: =IF(CL26=0,0,CL26-$W$45) -> 0 | CN37: =IF(CN26=0,0,CN26-$W$45) -> 0 | CP37: =IF(CP26=0,0,CP26-$W$45) -> 0 | CR37: =IF(CR26=0,0,CR26-$W$45) -> 0 | CT37: =IF(CT26=0,0,CT26-$W$45) -> 0 | CV37: =IF(CV26=0,0,CV26-$W$45) -> 0 | CX37: =IF(CX26=0,0,CX26-$W$45) -> 0 | CZ37: =IF(CZ26=0,0,CZ26-$W$45) -> 0 | DB37: =IF(DB26=0,0,DB26-$W$45) -> 0 | DD37: =IF(DD26=0,0,DD26-$W$45) -> 0 | DF37: =IF(DF26=0,0,DF26-$W$45) -> 0 | DH37: =IF(DH26=0,0,DH26-$W$45) -> 0 | DJ37: =IF(DJ26=0,0,DJ26-$W$45) -> 0 | DL37: =IF(DL26=0,0,DL26-$W$45) -> 0 | DN37: =IF(DN26=0,0,DN26-$W$45) -> 0 | DP37: =IF(DP26=0,0,DP26-$W$45) -> 0 | DR37: =IF(DR26=0,0,DR26-$W$45) -> 0 | DT37: =IF(DT26=0,0,DT26-$W$45) -> 0
A38: 1980 | B38: 7 | C38: 1 | D38: 4.2 | E38: 0 | F38: =INDEX($Q$27:$T$27,CEILING((1+MOD(B38,12))/3,1)) -> 0.66 | G38: =D38*F38 -> 2.772 | H38: 0 | I38: 0 | J38: 0 | K38: 0 | L38: =$B$26/2 -> 55.5 | V38: =V32 -> 5.551851713 | X38: =X37 -> 0 | Z38: =Z37 -> 2 | AB38: =AB37 -> 4 | AD38: =AD37 -> 6 | AF38: =AF37 -> 8 | AH38: =AH37 -> 10 | AJ38: =AJ37 -> 12 | AL38: =AL37 -> 14 | AN38: =AN37 -> 16 | AP38: =AP37 -> 18 | AR38: =AR37 -> 20 | AT38: =AT37 -> 22 | AV38: =AV37 -> 24 | AX38: =AX37 -> 0 | AZ38: =AZ37 -> 0 | BB38: =BB37 -> 0 | BD38: =BD37 -> 0 | BF38: =BF37 -> 0 | BH38: =BH37 -> 0 | BJ38: =BJ37 -> 0 | BL38: =BL37 -> 0 | BN38: =BN37 -> 0 | BP38: =BP37 -> 0 | BR38: =BR37 -> 0 | BT38: =BT37 -> 0 | BV38: =BV37 -> 0 | BX38: =BX37 -> 0 | BZ38: =BZ37 -> 0 | CB38: =CB37 -> 0 | CD38: =CD37 -> 0 | CF38: =CF37 -> 0 | CH38: =CH37 -> 0 | CJ38: =CJ37 -> 0 | CL38: =CL37 -> 0 | CN38: =CN37 -> 0 | CP38: =CP37 -> 0 | CR38: =CR37 -> 0 | CT38: =CT37 -> 0 | CV38: =CV37 -> 0 | CX38: =CX37 -> 0 | CZ38: =CZ37 -> 0 | DB38: =DB37 -> 0 | DD38: =DD37 -> 0 | DF38: =DF37 -> 0 | DH38: =DH37 -> 0 | DJ38: =DJ37 -> 0 | DL38: =DL37 -> 0 | DN38: =DN37 -> 0 | DP38: =DP37 -> 0 | DR38: =DR37 -> 0 | DT38: =DT37 -> 0
A39: 1980 | B39: 7 | C39: 2 | D39: 2.6 | E39: 0 | F39: 0.66 | G39: =IF(2*( L38/$C$26) <0.5,D39*F39* 4 *(L38/$C$26),D39*F39) -> 1.716 | H39: =MIN($B$22, MAX(0, L38-$C$26)) -> 5 | I39: =MIN($B$21*E39,$B$26-L38+G39+H39) -> 0 | J39: =MAX(0,L38+I39+$B$28-$B$26-H39-G39) -> 0 | K39: =$B$28 -> 2.437856068 | L39: =MAX(0,L38+I39+K39-G39-H39) -> 51.22185607 | AD39: =(AD25-1)*$H$28 -> 4.2 | AF39: =(AF25-1)*$H$28 -> 5.6
A40: 1980 | B40: 7 | C40: 3 | D40: 3.4 | E40: 0 | F40: 0.66 | G40: =IF(2*( L39/$C$26) <0.5,D40*F40* 4 *(L39/$C$26),D40*F40) -> 2.244 | H40: =MIN($B$22, MAX(0, L39-$C$26)) -> 5 | I40: 0 | J40: =MAX(0,L39+I40+$B$28-$B$26-H40-G40) -> 0 | K40: =$B$28 -> 2.437856068 | L40: 46.41571214 | V40: =V31 -> 0 | X40: =IF(X27=0,0,X27+$W$45) -> 2 | Z40: =IF(Z27=0,0,Z27+$W$45) -> 4 | AB40: =IF(AB27=0,0,AB27+$W$45) -> 6 | AD40: =IF(AD27=0,0,AD27+$W$45) -> 8 | AF40: =IF(AF27=0,0,AF27+$W$45) -> 10 | AH40: =IF(AH27=0,0,AH27+$W$45) -> 12 | AJ40: =IF(AJ27=0,0,AJ27+$W$45) -> 14 | AL40: =IF(AL27=0,0,AL27+$W$45) -> 16 | AN40: =IF(AN27=0,0,AN27+$W$45) -> 18 | AP40: =IF(AP27=0,0,AP27+$W$45) -> 20 | AR40: =IF(AR27=0,0,AR27+$W$45) -> 22 | AT40: =IF(AT27=0,0,AT27+$W$45) -> 24 | AV40: =IF(AV27=0,0,AV27+$W$45) -> 26 | AX40: =IF(AX27=0,0,AX27+$W$45) -> 0 | AZ40: =IF(AZ27=0,0,AZ27+$W$45) -> 0 | BB40: =IF(BB27=0,0,BB27+$W$45) -> 0 | BD40: =IF(BD27=0,0,BD27+$W$45) -> 0 | BF40: =IF(BF27=0,0,BF27+$W$45) -> 0 | BH40: =IF(BH27=0,0,BH27+$W$45) -> 0 | BJ40: =IF(BJ27=0,0,BJ27+$W$45) -> 0 | BL40: =IF(BL27=0,0,BL27+$W$45) -> 0 | BN40: =IF(BN27=0,0,BN27+$W$45) -> 0 | BP40: =IF(BP27=0,0,BP27+$W$45) -> 0 | BR40: =IF(BR27=0,0,BR27+$W$45) -> 0 | BT40: =IF(BT27=0,0,BT27+$W$45) -> 0 | BV40: =IF(BV27=0,0,BV27+$W$45) -> 0 | BX40: =IF(BX27=0,0,BX27+$W$45) -> 0 | BZ40: =IF(BZ27=0,0,BZ27+$W$45) -> 0 | CB40: =IF(CB27=0,0,CB27+$W$45) -> 0 | CD40: =IF(CD27=0,0,CD27+$W$45) -> 0 | CF40: =IF(CF27=0,0,CF27+$W$45) -> 0 | CH40: =IF(CH27=0,0,CH27+$W$45) -> 0 | CJ40: =IF(CJ27=0,0,CJ27+$W$45) -> 0 | CL40: =IF(CL27=0,0,CL27+$W$45) -> 0 | CN40: =IF(CN27=0,0,CN27+$W$45) -> 0 | CP40: =IF(CP27=0,0,CP27+$W$45) -> 0 | CR40: =IF(CR27=0,0,CR27+$W$45) -> 0 | CT40: =IF(CT27=0,0,CT27+$W$45) -> 0 | CV40: =IF(CV27=0,0,CV27+$W$45) -> 0 | CX40: =IF(CX27=0,0,CX27+$W$45) -> 0 | CZ40: =IF(CZ27=0,0,CZ27+$W$45) -> 0 | DB40: =IF(DB27=0,0,DB27+$W$45) -> 0 | DD40: =IF(DD27=0,0,DD27+$W$45) -> 0 | DF40: =IF(DF27=0,0,DF27+$W$45) -> 0 | DH40: =IF(DH27=0,0,DH27+$W$45) -> 0 | DJ40: =IF(DJ27=0,0,DJ27+$W$45) -> 0 | DL40: =IF(DL27=0,0,DL27+$W$45) -> 0 | DN40: =IF(DN27=0,0,DN27+$W$45) -> 0 | DP40: =IF(DP27=0,0,DP27+$W$45) -> 0 | DR40: =IF(DR27=0,0,DR27+$W$45) -> 0 | DT40: =IF(DT27=0,0,DT27+$W$45) -> 0
A41: 1980 | B41: 7 | C41: 4 | D41: 3.5 | E41: 0 | F41: 0.66 | G41: 2.31 | H41: 1.415712135 | I41: 0 | J41: 0 | K41: 2.437856068 | L41: 45.12785607 | V41: =V32 -> 5.551851713 | X41: =X40 -> 2 | Z41: =Z40 -> 4 | AB41: =AB40 -> 6 | AD41: =AD40 -> 8 | AF41: =AF40 -> 10 | AH41: =AH40 -> 12 | AJ41: =AJ40 -> 14 | AL41: =AL40 -> 16 | AN41: =AN40 -> 18 | AP41: =AP40 -> 20 | AR41: =AR40 -> 22 | AT41: =AT40 -> 24 | AV41: =AV40 -> 26 | AX41: =AX40 -> 0 | AZ41: =AZ40 -> 0 | BB41: =BB40 -> 0 | BD41: =BD40 -> 0 | BF41: =BF40 -> 0 | BH41: =BH40 -> 0 | BJ41: =BJ40 -> 0 | BL41: =BL40 -> 0 | BN41: =BN40 -> 0 | BP41: =BP40 -> 0 | BR41: =BR40 -> 0 | BT41: =BT40 -> 0 | BV41: =BV40 -> 0 | BX41: =BX40 -> 0 | BZ41: =BZ40 -> 0 | CB41: =CB40 -> 0 | CD41: =CD40 -> 0 | CF41: =CF40 -> 0 | CH41: =CH40 -> 0 | CJ41: =CJ40 -> 0 | CL41: =CL40 -> 0 | CN41: =CN40 -> 0 | CP41: =CP40 -> 0 | CR41: =CR40 -> 0 | CT41: =CT40 -> 0 | CV41: =CV40 -> 0 | CX41: =CX40 -> 0 | CZ41: =CZ40 -> 0 | DB41: =DB40 -> 0 | DD41: =DD40 -> 0 | DF41: =DF40 -> 0 | DH41: =DH40 -> 0 | DJ41: =DJ40 -> 0 | DL41: =DL40 -> 0 | DN41: =DN40 -> 0 | DP41: =DP40 -> 0 | DR41: =DR40 -> 0 | DT41: =DT40 -> 0
A42: 1980 | B42: 7 | C42: 5 | D42: 4.5 | E42: 0 | F42: 0.66 | G42: 2.97 | H42: 0.1278560677 | I42: 0 | J42: 0 | K42: 2.437856068 | L42: 44.46785607
A43: 1980 | B43: 7 | C43: 6 | D43: 3.3 | E43: 0 | F43: 0.66 | G43: 2.178 | H43: 0 | I43: 0 | J43: 0 | K43: 2.437856068 | L43: 44.72771214 | V43: =$V$31+($D$27+2*$W$45)/2 -> 1 | X43: =AVERAGE(X$26,X$29) -> 1 | Z43: =AVERAGE(Z$26,Z$29) -> 3 | AB43: =AVERAGE(AB$26,AB$29) -> 5 | AD43: =AVERAGE(AD$26,AD$29) -> 7 | AF43: =AVERAGE(AF$26,AF$29) -> 9 | AH43: =AVERAGE(AH$26,AH$29) -> 11 | AJ43: =AVERAGE(AJ$26,AJ$29) -> 13 | AL43: =AVERAGE(AL$26,AL$29) -> 15 | AN43: =AVERAGE(AN$26,AN$29) -> 17 | AP43: =AVERAGE(AP$26,AP$29) -> 19 | AR43: =AVERAGE(AR$26,AR$29) -> 21 | AT43: =AVERAGE(AT$26,AT$29) -> 23 | AV43: =AVERAGE(AV$26,AV$29) -> 25 | AX43: =AVERAGE(AX$26,AX$29) -> 0 | AZ43: =AVERAGE(AZ$26,AZ$29) -> 0 | BB43: =AVERAGE(BB$26,BB$29) -> 0 | BD43: =AVERAGE(BD$26,BD$29) -> 0 | BF43: =AVERAGE(BF$26,BF$29) -> 0 | BH43: =AVERAGE(BH$26,BH$29) -> 0 | BJ43: =AVERAGE(BJ$26,BJ$29) -> 0 | BL43: =AVERAGE(BL$26,BL$29) -> 0 | BN43: =AVERAGE(BN$26,BN$29) -> 0 | BP43: =AVERAGE(BP$26,BP$29) -> 0 | BR43: =AVERAGE(BR$26,BR$29) -> 0 | BT43: =AVERAGE(BT$26,BT$29) -> 0 | BV43: =AVERAGE(BV$26,BV$29) -> 0 | BX43: =AVERAGE(BX$26,BX$29) -> 0 | BZ43: =AVERAGE(BZ$26,BZ$29) -> 0 | CB43: =AVERAGE(CB$26,CB$29) -> 0 | CD43: =AVERAGE(CD$26,CD$29) -> 0 | CF43: =AVERAGE(CF$26,CF$29) -> 0 | CH43: =AVERAGE(CH$26,CH$29) -> 0 | CJ43: =AVERAGE(CJ$26,CJ$29) -> 0 | CL43: =AVERAGE(CL$26,CL$29) -> 0 | CN43: =AVERAGE(CN$26,CN$29) -> 0 | CP43: =AVERAGE(CP$26,CP$29) -> 0 | CR43: =AVERAGE(CR$26,CR$29) -> 0 | CT43: =AVERAGE(CT$26,CT$29) -> 0 | CV43: =AVERAGE(CV$26,CV$29) -> 0 | CX43: =AVERAGE(CX$26,CX$29) -> 0 | CZ43: =AVERAGE(CZ$26,CZ$29) -> 0 | DB43: =AVERAGE(DB$26,DB$29) -> 0 | DD43: =AVERAGE(DD$26,DD$29) -> 0 | DF43: =AVERAGE(DF$26,DF$29) -> 0 | DH43: =AVERAGE(DH$26,DH$29) -> 0 | DJ43: =AVERAGE(DJ$26,DJ$29) -> 0 | DL43: =AVERAGE(DL$26,DL$29) -> 0 | DN43: =AVERAGE(DN$26,DN$29) -> 0 | DP43: =AVERAGE(DP$26,DP$29) -> 0 | DR43: =AVERAGE(DR$26,DR$29) -> 0 | DT43: =AVERAGE(DT$26,DT$29) -> 0
A44: 1980 | B44: 7 | C44: 7 | D44: 2.7 | E44: 0 | F44: 0.66 | G44: 1.782 | H44: 0 | I44: 0 | J44: 0 | K44: 2.437856068 | L44: 45.3835682 | V44: =$V$35-($D$27+2*$W$45)/2 -> 4.551851713 | X44: =AVERAGE(X$26,X$29) -> 1 | Z44: =AVERAGE(Z$26,Z$29) -> 3 | AB44: =AVERAGE(AB$26,AB$29) -> 5 | AD44: =AVERAGE(AD$26,AD$29) -> 7 | AF44: =AVERAGE(AF$26,AF$29) -> 9 | AH44: =AVERAGE(AH$26,AH$29) -> 11 | AJ44: =AVERAGE(AJ$26,AJ$29) -> 13 | AL44: =AVERAGE(AL$26,AL$29) -> 15 | AN44: =AVERAGE(AN$26,AN$29) -> 17 | AP44: =AVERAGE(AP$26,AP$29) -> 19 | AR44: =AVERAGE(AR$26,AR$29) -> 21 | AT44: =AVERAGE(AT$26,AT$29) -> 23 | AV44: =AVERAGE(AV$26,AV$29) -> 25 | AX44: =AVERAGE(AX$26,AX$29) -> 0 | AZ44: =AVERAGE(AZ$26,AZ$29) -> 0 | BB44: =AVERAGE(BB$26,BB$29) -> 0 | BD44: =AVERAGE(BD$26,BD$29) -> 0 | BF44: =AVERAGE(BF$26,BF$29) -> 0 | BH44: =AVERAGE(BH$26,BH$29) -> 0 | BJ44: =AVERAGE(BJ$26,BJ$29) -> 0 | BL44: =AVERAGE(BL$26,BL$29) -> 0 | BN44: =AVERAGE(BN$26,BN$29) -> 0 | BP44: =AVERAGE(BP$26,BP$29) -> 0 | BR44: =AVERAGE(BR$26,BR$29) -> 0 | BT44: =AVERAGE(BT$26,BT$29) -> 0 | BV44: =AVERAGE(BV$26,BV$29) -> 0 | BX44: =AVERAGE(BX$26,BX$29) -> 0 | BZ44: =AVERAGE(BZ$26,BZ$29) -> 0 | CB44: =AVERAGE(CB$26,CB$29) -> 0 | CD44: =AVERAGE(CD$26,CD$29) -> 0 | CF44: =AVERAGE(CF$26,CF$29) -> 0 | CH44: =AVERAGE(CH$26,CH$29) -> 0 | CJ44: =AVERAGE(CJ$26,CJ$29) -> 0 | CL44: =AVERAGE(CL$26,CL$29) -> 0 | CN44: =AVERAGE(CN$26,CN$29) -> 0 | CP44: =AVERAGE(CP$26,CP$29) -> 0 | CR44: =AVERAGE(CR$26,CR$29) -> 0 | CT44: =AVERAGE(CT$26,CT$29) -> 0 | CV44: =AVERAGE(CV$26,CV$29) -> 0 | CX44: =AVERAGE(CX$26,CX$29) -> 0 | CZ44: =AVERAGE(CZ$26,CZ$29) -> 0 | DB44: =AVERAGE(DB$26,DB$29) -> 0 | DD44: =AVERAGE(DD$26,DD$29) -> 0 | DF44: =AVERAGE(DF$26,DF$29) -> 0 | DH44: =AVERAGE(DH$26,DH$29) -> 0 | DJ44: =AVERAGE(DJ$26,DJ$29) -> 0 | DL44: =AVERAGE(DL$26,DL$29) -> 0 | DN44: =AVERAGE(DN$26,DN$29) -> 0 | DP44: =AVERAGE(DP$26,DP$29) -> 0 | DR44: =AVERAGE(DR$26,DR$29) -> 0 | DT44: =AVERAGE(DT$26,DT$29) -> 0
A45: 1980 | B45: 7 | C45: 8 | D45: 2.5 | E45: 0 | F45: 0.66 | G45: 1.65 | H45: 0.383568203 | I45: 0 | J45: 0 | K45: 2.437856068 | L45: 45.78785607 | V45: Envelope width (0 if SSI) | W45: =IF($AG$48=1,0,$F$27) -> 0 | X45: Area: max(N area, hyd area) | Y45: =$B$19 -> 144.3481445 | Z45: # trenches | AA45: 13
A46: 1980 | B46: 7 | C46: 9 | D46: 3 | E46: 0 | F46: 0.66 | G46: 1.98 | H46: 0.7878560677 | I46: 0 | J46: 0 | K46: 2.437856068 | L46: 45.45785607 | X46: x dim each bed | Y46: =(Y45/AA45) / (D27+2*$W$45) -> 5.551851713 | Z46: Envelope area | AA46: =$Y$46*$Y$47 -> 144.3481445 | AG46: SSI
A47: 1980 | B47: 7 | C47: 10 | D47: 3.6 | E47: 0 | F47: 0.66 | G47: 2.376 | H47: 0.4578560677 | I47: 0 | J47: 0 | K47: 2.437856068 | L47: 45.06185607 | X47: max Y | Y47: =MAX(X29:DU29)+$W$45 -> 26 | Z47: Max XY scale | AA47: =5*FLOOR((5+MAX($Y$47,$Y$46))/5,1) -> 30 | AG47: ETA
A48: 1980 | B48: 7 | C48: 11 | D48: 3.3 | E48: 0 | F48: 0.66 | G48: 2.178 | H48: 0.06185606765 | I48: 0 | J48: 0 | K48: 2.437856068 | L48: 45.25985607 | X48: max Y (no separation between beds) | Y48: =$Y$47-($AA$45-1)*($H$28*($AG$48=2)) -> 26 | Z48: ETA trench width | AA48: =D27 -> 2 | AF48: Link Cell | AG48: 1
A49: 1980 | B49: 7 | C49: 12 | D49: 1 | E49: 0 | F49: 0.66 | G49: 0.66 | H49: 0.2598560677 | I49: 0 | J49: 0 | K49: 2.437856068 | L49: 46.77785607 | X49: Init (default) #trenches | Y49: =CEILING((Y45/20)/(AA48+2*W45),1) -> 4 | Z49: =CEILING($Y$45/( SQRT($AA$46) *($D$27+2*$W$45)),1) -> 7 | AA49: .<-alternative default # trenches (sqrt of area)
A50: 1980 | B50: 7 | C50: 13 | D50: 2.6 | E50: 0 | F50: 0.66 | G50: 1.716 | H50: 1.777856068 | I50: 0 | J50: 0 | K50: 2.437856068 | L50: 45.72185607 | X50: Tot trench area | Y50: =(Y46-(2*F27))*AA48*AA45 -> 128.7481445
A51: 1980 | B51: 7 | C51: 14 | D51: 2.2 | E51: 0 | F51: 0.66 | G51: 1.452 | H51: 0.7218560677 | I51: 0 | J51: 0 | K51: 2.437856068 | L51: 45.98585607 | X51: Tot bed area | Y51: =Y46*Y48 -> 144.3481445
A52: 1980 | B52: 7 | C52: 15 | D52: 2.9 | E52: 0 | F52: 0.66 | G52: 1.914 | H52: 0.9858560677 | I52: 0 | J52: 0 | K52: 2.437856068 | L52: 45.52385607 | X52: rat trench A:tot beds A | Y52: =IF($AG$48=1,1,$Y$50/$Y$51) -> 1
A53: 1980 | B53: 7 | C53: 16 | D53: 1.1 | E53: 0.4 | F53: 0.66 | G53: 0.726 | H53: 0.5238560677 | I53: 0.34 | J53: 0 | K53: 2.437856068 | L53: 47.05185607
A54: 1980 | B54: 7 | C54: 17 | D54: 1.8 | E54: 0 | F54: 0.66 | G54: 1.188 | H54: 2.051856068 | I54: 0 | J54: 0 | K54: 2.437856068 | L54: 46.24985607
A55: 1980 | B55: 7 | C55: 18 | D55: 2.5 | E55: 0 | F55: 0.66 | G55: 1.65 | H55: 1.249856068 | I55: 0 | J55: 0 | K55: 2.437856068 | L55: 45.78785607
A56: 1980 | B56: 7 | C56: 19 | D56: 3.7 | E56: 0 | F56: 0.66 | G56: 2.442 | H56: 0.7878560677 | I56: 0 | J56: 0 | K56: 2.437856068 | L56: 44.99585607
A57: 1980 | B57: 7 | C57: 20 | D57: 2.6 | E57: 0 | F57: 0.66 | G57: 1.716 | H57: 0 | I57: 0 | J57: 0 | K57: 2.437856068 | L57: 45.71771214
A58: 1980 | B58: 7 | C58: 21 | D58: 4.4 | E58: 0 | F58: 0.66 | G58: 2.904 | H58: 0.7177121353 | I58: 0 | J58: 0 | K58: 2.437856068 | L58: 44.53385607
A59: 1980 | B59: 7 | C59: 22 | D59: 3.8 | E59: 0 | F59: 0.66 | G59: 2.508 | H59: 0 | I59: 0 | J59: 0 | K59: 2.437856068 | L59: 44.46371214
A60: 1980 | B60: 7 | C60: 23 | D60: 2.9 | E60: 0 | F60: 0.66 | G60: 1.914 | H60: 0 | I60: 0 | J60: 0 | K60: 2.437856068 | L60: 44.9875682
A61: 1980 | B61: 7 | C61: 24 | D61: 2.6 | E61: 2.2 | F61: 0.66 | G61: 1.716 | H61: 0 | I61: 1.87 | J61: 0 | K61: 2.437856068 | L61: 47.57942427
A62: 1980 | B62: 7 | C62: 25 | D62: 2.4 | E62: 1 | F62: 0.66 | G62: 1.584 | H62: 2.579424271 | I62: 0.85 | J62: 0 | K62: 2.437856068 | L62: 46.70385607
A63: 1980 | B63: 7 | C63: 26 | D63: 1.7 | E63: 4 | F63: 0.66 | G63: 1.122 | H63: 1.703856068 | I63: 3.4 | J63: 0 | K63: 2.437856068 | L63: 49.71585607
A64: 1980 | B64: 7 | C64: 27 | D64: 2 | E64: 10.6 | F64: 0.66 | G64: 1.32 | H64: 4.715856068 | I64: 9.01 | J64: 0 | K64: 2.437856068 | L64: 55.12785607
A65: 1980 | B65: 7 | C65: 28 | D65: 1.1 | E65: 4.6 | F65: 0.66 | G65: 0.726 | H65: 5 | I65: 3.91 | J65: 0 | K65: 2.437856068 | L65: 55.74971214
A66: 1980 | B66: 7 | C66: 29 | D66: 1.3 | E66: 0 | F66: 0.66 | G66: 0.858 | H66: 5 | I66: 0 | J66: 0 | K66: 2.437856068 | L66: 52.3295682
A67: 1980 | B67: 7 | C67: 30 | D67: 2.3 | E67: 1 | F67: 0.66 | G67: 1.518 | H67: 5 | I67: 0.85 | J67: 0 | K67: 2.437856068 | L67: 49.09942427
A68: 1980 | B68: 7 | C68: 31 | D68: 1.7 | E68: 22.6 | F68: 0.66 | G68: 1.122 | H68: 4.099424271 | I68: 19.21 | J68: 0 | K68: 2.437856068 | L68: 65.52585607
A69: 1980 | B69: 8 | C69: 1 | D69: 1.4 | E69: 4.8 | F69: 0.66 | G69: 0.924 | H69: 5 | I69: 4.08 | J69: 0 | K69: 2.437856068 | L69: 66.11971214
A70: 1980 | B70: 8 | C70: 2 | D70: 2.8 | E70: 0 | F70: 0.66 | G70: 1.848 | H70: 5 | I70: 0 | J70: 0 | K70: 2.437856068 | L70: 61.7095682
A71: 1980 | B71: 8 | C71: 3 | D71: 3.8 | E71: 0 | F71: 0.66 | G71: 2.508 | H71: 5 | I71: 0 | J71: 0 | K71: 2.437856068 | L71: 56.63942427
A72: 1980 | B72: 8 | C72: 4 | D72: 4 | E72: 0 | F72: 0.66 | G72: 2.64 | H72: 5 | I72: 0 | J72: 0 | K72: 2.437856068 | L72: 51.43728034
A73: 1980 | B73: 8 | C73: 5 | D73: 1.8 | E73: 0 | F73: 0.66 | G73: 1.188 | H73: 5 | I73: 0 | J73: 0 | K73: 2.437856068 | L73: 47.68713641
A74: 1980 | B74: 8 | C74: 6 | D74: 2.1 | E74: 0 | F74: 0.66 | G74: 1.386 | H74: 2.687136406 | I74: 0 | J74: 0 | K74: 2.437856068 | L74: 46.05185607
A75: 1980 | B75: 8 | C75: 7 | D75: 1.9 | E75: 0 | F75: 0.66 | G75: 1.254 | H75: 1.051856068 | I75: 0 | J75: 0 | K75: 2.437856068 | L75: 46.18385607
A76: 1980 | B76: 8 | C76: 8 | D76: 1.8 | E76: 0.3 | F76: 0.66 | G76: 1.188 | H76: 1.183856068 | I76: 0.255 | J76: 0 | K76: 2.437856068 | L76: 46.50485607
A77: 1980 | B77: 8 | C77: 9 | D77: 4 | E77: 0 | F77: 0.66 | G77: 2.64 | H77: 1.504856068 | I77: 0 | J77: 0 | K77: 2.437856068 | L77: 44.79785607
A78: 1980 | B78: 8 | C78: 10 | D78: 3.1 | E78: 0 | F78: 0.66 | G78: 2.046 | H78: 0 | I78: 0 | J78: 0 | K78: 2.437856068 | L78: 45.18971214
A79: 1980 | B79: 8 | C79: 11 | D79: 2.5 | E79: 0 | F79: 0.66 | G79: 1.65 | H79: 0.1897121353 | I79: 0 | J79: 0 | K79: 2.437856068 | L79: 45.78785607
A80: 1980 | B80: 8 | C80: 12 | D80: 4.4 | E80: 0 | F80: 0.66 | G80: 2.904 | H80: 0.7878560677 | I80: 0 | J80: 0 | K80: 2.437856068 | L80: 44.53385607
A81: 1980 | B81: 8 | C81: 13 | D81: 2.7 | E81: 0 | F81: 0.66 | G81: 1.782 | H81: 0 | I81: 0 | J81: 0 | K81: 2.437856068 | L81: 45.18971214
A82: 1980 | B82: 8 | C82: 14 | D82: 3.4 | E82: 3.4 | F82: 0.66 | G82: 2.244 | H82: 0.1897121353 | I82: 2.89 | J82: 0 | K82: 2.437856068 | L82: 48.08385607
A83: 1980 | B83: 8 | C83: 15 | D83: 2.4 | E83: 0 | F83: 0.66 | G83: 1.584 | H83: 3.083856068 | I83: 0 | J83: 0 | K83: 2.437856068 | L83: 45.85385607
A84: 1980 | B84: 8 | C84: 16 | D84: 7.1 | E84: 0 | F84: 0.66 | G84: 4.686 | H84: 0.8538560677 | I84: 0 | J84: 0 | K84: 2.437856068 | L84: 42.75185607
A85: 1980 | B85: 8 | C85: 17 | D85: 4 | E85: 0 | F85: 0.66 | G85: 2.64 | H85: 0 | I85: 0 | J85: 0 | K85: 2.437856068 | L85: 42.54971214
A86: 1980 | B86: 8 | C86: 18 | D86: 2.6 | E86: 2.4 | F86: 0.66 | G86: 1.716 | H86: 0 | I86: 2.04 | J86: 0 | K86: 2.437856068 | L86: 45.3115682
A87: 1980 | B87: 8 | C87: 19 | D87: 3.4 | E87: 7.3 | F87: 0.66 | G87: 2.244 | H87: 0.311568203 | I87: 6.205 | J87: 0 | K87: 2.437856068 | L87: 51.39885607
A88: 1980 | B88: 8 | C88: 20 | D88: 2.4 | E88: 4.4 | F88: 0.66 | G88: 1.584 | H88: 5 | I88: 3.74 | J88: 0 | K88: 2.437856068 | L88: 50.99271214
A89: 1980 | B89: 8 | C89: 21 | D89: 3.2 | E89: 0 | F89: 0.66 | G89: 2.112 | H89: 5 | I89: 0 | J89: 0 | K89: 2.437856068 | L89: 46.3185682
A90: 1980 | B90: 8 | C90: 22 | D90: 3.5 | E90: 2.6 | F90: 0.66 | G90: 2.31 | H90: 1.318568203 | I90: 2.21 | J90: 0 | K90: 2.437856068 | L90: 47.33785607
A91: 1980 | B91: 8 | C91: 23 | D91: 4 | E91: 0 | F91: 0.66 | G91: 2.64 | H91: 2.337856068 | I91: 0 | J91: 0 | K91: 2.437856068 | L91: 44.79785607
A92: 1980 | B92: 8 | C92: 24 | D92: 4.6 | E92: 0 | F92: 0.66 | G92: 3.036 | H92: 0 | I92: 0 | J92: 0 | K92: 2.437856068 | L92: 44.19971214
A93: 1980 | B93: 8 | C93: 25 | D93: 5.2 | E93: 0 | F93: 0.66 | G93: 3.432 | H93: 0 | I93: 0 | J93: 0 | K93: 2.437856068 | L93: 43.2055682
A94: 1980 | B94: 8 | C94: 26 | D94: 2.6 | E94: 7.4 | F94: 0.66 | G94: 1.716 | H94: 0 | I94: 6.29 | J94: 0 | K94: 2.437856068 | L94: 50.21742427
A95: 1980 | B95: 8 | C95: 27 | D95: 5.1 | E95: 0 | F95: 0.66 | G95: 3.366 | H95: 5 | I95: 0 | J95: 0 | K95: 2.437856068 | L95: 44.28928034
A96: 1980 | B96: 8 | C96: 28 | D96: 3.6 | E96: 0 | F96: 0.66 | G96: 2.376 | H96: 0 | I96: 0 | J96: 0 | K96: 2.437856068 | L96: 44.35113641
A97: 1980 | B97: 8 | C97: 29 | D97: 3.7 | E97: 0 | F97: 0.66 | G97: 2.442 | H97: 0 | I97: 0 | J97: 0 | K97: 2.437856068 | L97: 44.34699247
A98: 1980 | B98: 8 | C98: 30 | D98: 3.9 | E98: 0 | F98: 0.66 | G98: 2.574 | H98: 0 | I98: 0 | J98: 0 | K98: 2.437856068 | L98: 44.21084854
A99: 1980 | B99: 8 | C99: 31 | D99: 5.8 | E99: 0 | F99: 0.66 | G99: 3.828 | H99: 0 | I99: 0 | J99: 0 | K99: 2.437856068 | L99: 42.82070461
A100: 1980 | B100: 9 | C100: 1 | D100: 7.6 | E100: 0 | F100: 0.74 | G100: 5.624 | H100: 0 | I100: 0 | J100: 0 | K100: 2.437856068 | L100: 39.63456068
A101: 1980 | B101: 9 | C101: 2 | D101: 5.6 | E101: 0 | F101: 0.74 | G101: 4.144 | H101: 0 | I101: 0 | J101: 0 | K101: 2.437856068 | L101: 37.92841674
A102: 1980 | B102: 9 | C102: 3 | D102: 5 | E102: 0 | F102: =INDEX($Q$27:$T$27,CEILING((1+MOD(B102,12))/3,1)) -> 0.74 | G102: 3.7 | H102: 0 | I102: 0 | J102: 0 | K102: 2.437856068 | L102: 36.66627281
A103: 1980 | B103: 9 | C103: 4 | D103: 5.9 | E103: 0 | F103: 0.74 | G103: 4.366 | H103: 0 | I103: =MIN($B$21*E103,$B$26-L102+G103+H103) -> 0 | J103: 0 | K103: 2.437856068 | L103: =MAX(0,L102+I103+K103-G103-H103) -> 34.73812888
A104: 1980 | B104: 9 | C104: 5 | D104: 3.5 | E104: 0 | F104: 0.74 | G104: =IF(2*( L103/$C$26) <0.5,D104*F104* 4 *(L103/$C$26),D104*F104) -> 2.59 | H104: =MIN($B$22, MAX(0, L103-$C$26)) -> 0 | I104: 0 | J104: =MAX(0,L103+I104+$B$28-$B$26-H104-G104) -> 0 | K104: =$B$28 -> 2.437856068 | L104: 34.58598495
A105: 1980 | B105: 9 | C105: 6 | D105: 4.4 | E105: 0 | F105: 0.74 | G105: 3.256 | H105: 0 | I105: 0 | J105: 0 | K105: 2.437856068 | L105: 33.76784101
A106: 1980 | B106: 9 | C106: 7 | D106: 3.2 | E106: 0 | F106: 0.74 | G106: 2.368 | H106: 0 | I106: 0 | J106: 0 | K106: 2.437856068 | L106: 33.83769708
A107: 1980 | B107: 9 | C107: 8 | D107: 6.8 | E107: 0 | F107: 0.74 | G107: 5.032 | H107: 0 | I107: 0 | J107: 0 | K107: 2.437856068 | L107: 31.24355315
A108: 1980 | B108: 9 | C108: 9 | D108: 10.4 | E108: 0 | F108: 0.74 | G108: 7.696 | H108: 0 | I108: 0 | J108: 0 | K108: 2.437856068 | L108: 25.98540922
A109: 1980 | B109: 9 | C109: 10 | D109: 10.4 | E109: 0 | F109: 0.74 | G109: 7.696 | H109: 0 | I109: 0 | J109: 0 | K109: 2.437856068 | L109: 20.72726529
A110: 1980 | B110: 9 | C110: 11 | D110: 4.6 | E110: 0 | F110: 0.74 | G110: 3.404 | H110: 0 | I110: 0 | J110: 0 | K110: 2.437856068 | L110: 19.76112135
A111: 1980 | B111: 9 | C111: 12 | D111: 5.7 | E111: 0 | F111: 0.74 | G111: 4.218 | H111: 0 | I111: 0 | J111: 0 | K111: 2.437856068 | L111: 17.98097742
A112: 1980 | B112: 9 | C112: 13 | D112: 4.4 | E112: 0 | F112: 0.74 | G112: 3.256 | H112: 0 | I112: 0 | J112: 0 | K112: 2.437856068 | L112: 17.16283349
A113: 1980 | B113: 9 | C113: 14 | D113: 3.8 | E113: 0 | F113: 0.74 | G113: 2.812 | H113: 0 | I113: 0 | J113: 0 | K113: 2.437856068 | L113: 16.78868956
A114: 1980 | B114: 9 | C114: 15 | D114: 5.1 | E114: 0 | F114: 0.74 | G114: 3.774 | H114: 0 | I114: 0 | J114: 0 | K114: 2.437856068 | L114: 15.45254562
A115: 1980 | B115: 9 | C115: 16 | D115: 7.4 | E115: 0 | F115: 0.74 | G115: 5.476 | H115: 0 | I115: 0 | J115: 0 | K115: 2.437856068 | L115: 12.41440169
A116: 1980 | B116: 9 | C116: 17 | D116: 5.4 | E116: 0 | F116: 0.74 | G116: 3.996 | H116: 0 | I116: 0 | J116: 0 | K116: 2.437856068 | L116: 10.85625776
A117: 1980 | B117: 9 | C117: 18 | D117: 5.9 | E117: 0 | F117: 0.74 | G117: 4.213193011 | H117: 0 | I117: 0 | J117: 0 | K117: 2.437856068 | L117: 9.080920815
A118: 1980 | B118: 9 | C118: 19 | D118: 8.9 | E118: 0 | F118: 0.74 | G118: 5.316172844 | H118: 0 | I118: 0 | J118: 0 | K118: 2.437856068 | L118: 6.20260404
A119: 1980 | B119: 9 | C119: 20 | D119: 6.6 | E119: 0 | F119: 0.74 | G119: 2.692757167 | H119: 0 | I119: 0 | J119: 0 | K119: 2.437856068 | L119: 5.94770294
A120: 1980 | B120: 9 | C120: 21 | D120: 5 | E120: 0 | F120: 0.74 | G120: 1.956133411 | H120: 0 | I120: 0 | J120: 0 | K120: 2.437856068 | L120: 6.429425596
A121: 1980 | B121: 9 | C121: 22 | D121: 6.7 | E121: 0 | F121: 0.74 | G121: 2.833519298 | H121: 0 | I121: 0 | J121: 0 | K121: 2.437856068 | L121: 6.033762366
A122: 1980 | B122: 9 | C122: 23 | D122: 5.7 | E122: 0 | F122: 0.74 | G122: 2.262258636 | H122: 0 | I122: 0 | J122: 0 | K122: 2.437856068 | L122: 6.209359797
A123: 1980 | B123: 9 | C123: 24 | D123: 4.4 | E123: 0 | F123: 0.74 | G123: 1.797126711 | H123: 0 | I123: 0 | J123: 0 | K123: 2.437856068 | L123: 6.850089154
A124: 1980 | B124: 9 | C124: 25 | D124: 5.4 | E124: 0 | F124: 0.74 | G124: 2.433151667 | H124: 0 | I124: 0 | J124: 0 | K124: 2.437856068 | L124: 6.854793554
A125: 1980 | B125: 9 | C125: 26 | D125: 4.7 | E125: 0 | F125: 0.74 | G125: 2.119197509 | H125: 0 | I125: 0 | J125: 0 | K125: 2.437856068 | L125: 7.173452112
A126: 1980 | B126: 9 | C126: 27 | D126: 4.2 | E126: 0 | F126: 0.74 | G126: 1.981785704 | H126: 0 | I126: 0 | J126: 0 | K126: 2.437856068 | L126: 7.629522476
A127: 1980 | B127: 9 | C127: 28 | D127: 3.6 | E127: 0 | F127: 0.74 | G127: 1.806670922 | H127: 0 | I127: 0 | J127: 0 | K127: 2.437856068 | L127: 8.260707622
A128: 1980 | B128: 9 | C128: 29 | D128: 5.9 | E128: 0 | F128: 0.74 | G128: 3.205888842 | H128: 0 | I128: 0 | J128: 0 | K128: 2.437856068 | L128: 7.492674847
A129: 1980 | B129: 9 | C129: 30 | D129: 6.7 | E129: 0 | F129: 0.74 | G129: 3.302105057 | H129: 0 | I129: 0 | J129: 0 | K129: 2.437856068 | L129: 6.628425858
A130: 1980 | B130: 10 | C130: 1 | D130: 6.6 | E130: 0 | F130: 0.74 | G130: 2.877620612 | H130: 0 | I130: 0 | J130: 0 | K130: 2.437856068 | L130: 6.188661313
A131: 1980 | B131: 10 | C131: 2 | D131: 6.8 | E131: 0 | F131: 0.74 | G131: 2.768119442 | H131: 0 | I131: 0 | J131: 0 | K131: 2.437856068 | L131: 5.858397938
A132: 1980 | B132: 10 | C132: 3 | D132: 7.9 | E132: 0 | F132: 0.74 | G132: 3.044283942 | H132: 0 | I132: 0 | J132: 0 | K132: 2.437856068 | L132: 5.251970064
A133: 1980 | B133: 10 | C133: 4 | D133: 6 | E133: 0 | F133: 0.74 | G133: 2.072777519 | H133: 0 | I133: 0 | J133: 0 | K133: 2.437856068 | L133: 5.617048613
A134: 1980 | B134: 10 | C134: 5 | D134: 2.4 | E134: 3.2 | F134: 0.74 | G134: 0.886744741 | H134: 0 | I134: 2.72 | J134: 0 | K134: 2.437856068 | L134: 9.88815994
A135: 1980 | B135: 10 | C135: 6 | D135: 2.6 | E135: 0 | F135: 0.74 | G135: 1.691095087 | H135: 0 | I135: 0 | J135: 0 | K135: 2.437856068 | L135: 10.63492092
A136: 1980 | B136: 10 | C136: 7 | D136: 5.1 | E136: 0 | F136: 0.74 | G136: 3.567661472 | H136: 0 | I136: 0 | J136: 0 | K136: 2.437856068 | L136: 9.505115517
A137: 1980 | B137: 10 | C137: 8 | D137: 6.6 | E137: 0 | F137: 0.74 | G137: 4.126487483 | H137: 0 | I137: 0 | J137: 0 | K137: 2.437856068 | L137: 7.816484101
A138: 1980 | B138: 10 | C138: 9 | D138: 2.7 | E138: 0 | F138: 0.74 | G138: 1.388207576 | H138: 0 | I138: 0 | J138: 0 | K138: 2.437856068 | L138: 8.866132593
A139: 1980 | B139: 10 | C139: 10 | D139: 3 | E139: 0.6 | F139: 0.74 | G139: 1.749583498 | H139: 0 | I139: 0.51 | J139: 0 | K139: 2.437856068 | L139: 10.06440516
A140: 1980 | B140: 10 | C140: 11 | D140: 3.6 | E140: 0.7 | F140: 0.74 | G140: 2.383251142 | H140: 0 | I140: 0.595 | J140: 0 | K140: 2.437856068 | L140: 10.71401009
A141: 1980 | B141: 10 | C141: 12 | D141: 4.2 | E141: 0.2 | F141: 0.74 | G141: 2.959923853 | H141: 0 | I141: 0.17 | J141: 0 | K141: 2.437856068 | L141: 10.3619423
A142: 1980 | B142: 10 | C142: 13 | D142: 3.9 | E142: 0 | F142: 0.74 | G142: 2.658183598 | H142: 0 | I142: 0 | J142: 0 | K142: 2.437856068 | L142: 10.14161477
A143: 1980 | B143: 10 | C143: 14 | D143: 5.5 | E143: 3.2 | F143: 0.74 | G143: 3.669010855 | H143: 0 | I143: 2.72 | J143: 0 | K143: 2.437856068 | L143: 11.63045998
A144: 1980 | B144: 10 | C144: 15 | D144: 2 | E144: 3.4 | F144: 0.74 | G144: 1.48 | H144: 0 | I144: 2.89 | J144: 0 | K144: 2.437856068 | L144: 15.47831605
A145: 1980 | B145: 10 | C145: 16 | D145: 5.6 | E145: 0 | F145: 0.74 | G145: 4.144 | H145: 0 | I145: 0 | J145: 0 | K145: 2.437856068 | L145: 13.77217212
A146: 1980 | B146: 10 | C146: 17 | D146: 5.7 | E146: 0 | F146: 0.74 | G146: 4.218 | H146: 0 | I146: 0 | J146: 0 | K146: 2.437856068 | L146: 11.99202819
A147: 1980 | B147: 10 | C147: 18 | D147: 1.8 | E147: 2.8 | F147: 0.74 | G147: 1.332 | H147: 0 | I147: 2.38 | J147: 0 | K147: 2.437856068 | L147: 15.47788425
A148: 1980 | B148: 10 | C148: 19 | D148: 1.5 | E148: 0 | F148: 0.74 | G148: 1.11 | H148: 0 | I148: 0 | J148: 0 | K148: 2.437856068 | L148: 16.80574032
A149: 1980 | B149: 10 | C149: 20 | D149: 5.2 | E149: 0 | F149: 0.74 | G149: 3.848 | H149: 0 | I149: 0 | J149: 0 | K149: 2.437856068 | L149: 15.39559639
A150: 1980 | B150: 10 | C150: 21 | D150: 4.9 | E150: 0 | F150: 0.74 | G150: 3.626 | H150: 0 | I150: 0 | J150: 0 | K150: 2.437856068 | L150: 14.20745246
A151: 1980 | B151: 10 | C151: 22 | D151: 6 | E151: 0 | F151: 0.74 | G151: 4.44 | H151: 0 | I151: 0 | J151: 0 | K151: 2.437856068 | L151: 12.20530852
A152: 1980 | B152: 10 | C152: 23 | D152: 5.5 | E152: 0 | F152: 0.74 | G152: 4.07 | H152: 0 | I152: 0 | J152: 0 | K152: 2.437856068 | L152: 10.57316459
A153: 1980 | B153: 10 | C153: 24 | D153: 6 | E153: 0 | F153: 0.74 | G153: 4.172875626 | H153: 0 | I153: 0 | J153: 0 | K153: 2.437856068 | L153: 8.838145034
A154: 1980 | B154: 10 | C154: 25 | D154: 3.9 | E154: 4.5 | F154: 0.74 | G154: 2.267278806 | H154: 0 | I154: 3.825 | J154: 0 | K154: 2.437856068 | L154: 12.8337223
A155: 1980 | B155: 10 | C155: 26 | D155: 28.6 | E155: 72 | F155: 0.74 | G155: 21.164 | H155: 0 | I155: 61.2 | J155: 0 | K155: 2.437856068 | L155: 55.30757836
A156: 1980 | B156: 10 | C156: 27 | D156: 1.4 | E156: 4 | F156: 0.74 | G156: 1.036 | H156: 5 | I156: 3.4 | J156: 0 | K156: 2.437856068 | L156: 55.10943443
A157: 1980 | B157: 10 | C157: 28 | D157: 2.8 | E157: 1.2 | F157: 0.74 | G157: 2.072 | H157: 5 | I157: 1.02 | J157: 0 | K157: 2.437856068 | L157: 51.4952905
A158: 1980 | B158: 10 | C158: 29 | D158: 8.8 | E158: 0.1 | F158: 0.74 | G158: 6.512 | H158: 5 | I158: 0.085 | J158: 0 | K158: 2.437856068 | L158: 42.50614657
A159: 1980 | B159: 10 | C159: 30 | D159: 5.7 | E159: 0 | F159: 0.74 | G159: 4.218 | H159: 0 | I159: 0 | J159: 0 | K159: 2.437856068 | L159: 40.72600263
A160: 1980 | B160: 10 | C160: 31 | D160: 7.5 | E160: 0 | F160: 0.74 | G160: 5.55 | H160: 0 | I160: 0 | J160: 0 | K160: 2.437856068 | L160: 37.6138587
A161: 1980 | B161: 11 | C161: 1 | D161: 8.2 | E161: 0 | F161: 0.74 | G161: 6.068 | H161: 0 | I161: 0 | J161: 0 | K161: 2.437856068 | L161: 33.98371477
A162: 1980 | B162: 11 | C162: 2 | D162: 9.4 | E162: 0 | F162: 0.74 | G162: 6.956 | H162: 0 | I162: 0 | J162: 0 | K162: 2.437856068 | L162: 29.46557084
A163: 1980 | B163: 11 | C163: 3 | D163: 9.1 | E163: 0 | F163: 0.74 | G163: 6.734 | H163: 0 | I163: 0 | J163: 0 | K163: 2.437856068 | L163: 25.1694269
A164: 1980 | B164: 11 | C164: 4 | D164: 10.8 | E164: 0 | F164: 0.74 | G164: 7.992 | H164: 0 | I164: 0 | J164: 0 | K164: 2.437856068 | L164: 19.61528297
A165: 1980 | B165: 11 | C165: 5 | D165: 6.1 | E165: 0 | F165: 0.74 | G165: 4.514 | H165: 0 | I165: 0 | J165: 0 | K165: 2.437856068 | L165: 17.53913904
A166: 1980 | B166: 11 | C166: 6 | D166: 5.1 | E166: 0.8 | F166: =INDEX($Q$27:$T$27,CEILING((1+MOD(B166,12))/3,1)) -> 0.74 | G166: 3.774 | H166: 0 | I166: 0.68 | J166: 0 | K166: 2.437856068 | L166: 16.88299511
A167: 1980 | B167: 11 | C167: 7 | D167: 9.5 | E167: 0 | F167: 0.74 | G167: 7.03 | H167: 0 | I167: =MIN($B$21*E167,$B$26-L166+G167+H167) -> 0 | J167: 0 | K167: 2.437856068 | L167: =MAX(0,L166+I167+K167-G167-H167) -> 12.29085118
A168: 1980 | B168: 11 | C168: 8 | D168: 7 | E168: 1.8 | F168: 0.74 | G168: =IF(2*( L167/$C$26) <0.5,D168*F168* 4 *(L167/$C$26),D168*F168) -> 5.18 | H168: =MIN($B$22, MAX(0, L167-$C$26)) -> 0 | I168: 1.53 | J168: =MAX(0,L167+I168+$B$28-$B$26-H168-G168) -> 0 | K168: =$B$28 -> 2.437856068 | L168: 11.07870724
A169: 1980 | B169: 11 | C169: 9 | D169: 5.8 | E169: 0.2 | F169: 0.74 | G169: 4.22664991 | H169: 0 | I169: 0.17 | J169: 0 | K169: 2.437856068 | L169: 9.459913401
A170: 1980 | B170: 11 | C170: 10 | D170: 6.9 | E170: 22 | F170: 0.74 | G170: 4.293539362 | H170: 0 | I170: 18.7 | J170: 0 | K170: 2.437856068 | L170: 26.30423011
A171: 1980 | B171: 11 | C171: 11 | D171: 2.8 | E171: 22.8 | F171: 0.74 | G171: 2.072 | H171: 0 | I171: 19.38 | J171: 0 | K171: 2.437856068 | L171: 46.05008617
A172: 1980 | B172: 11 | C172: 12 | D172: 5.4 | E172: 0 | F172: 0.74 | G172: 3.996 | H172: 1.050086174 | I172: 0 | J172: 0 | K172: 2.437856068 | L172: 43.44185607
A173: 1980 | B173: 11 | C173: 13 | D173: 6.2 | E173: 0 | F173: 0.74 | G173: 4.588 | H173: 0 | I173: 0 | J173: 0 | K173: 2.437856068 | L173: 41.29171214
A174: 1980 | B174: 11 | C174: 14 | D174: 6.7 | E174: 0 | F174: 0.74 | G174: 4.958 | H174: 0 | I174: 0 | J174: 0 | K174: 2.437856068 | L174: 38.7715682
A175: 1980 | B175: 11 | C175: 15 | D175: 7 | E175: 0 | F175: 0.74 | G175: 5.18 | H175: 0 | I175: 0 | J175: 0 | K175: 2.437856068 | L175: 36.02942427
A176: 1980 | B176: 11 | C176: 16 | D176: 6.2 | E176: 0 | F176: 0.74 | G176: 4.588 | H176: 0 | I176: 0 | J176: 0 | K176: 2.437856068 | L176: 33.87928034
A177: 1980 | B177: 11 | C177: 17 | D177: 6 | E177: 0 | F177: 0.74 | G177: 4.44 | H177: 0 | I177: 0 | J177: 0 | K177: 2.437856068 | L177: 31.87713641
A178: 1980 | B178: 11 | C178: 18 | D178: 8 | E178: 0 | F178: 0.74 | G178: 5.92 | H178: 0 | I178: 0 | J178: 0 | K178: 2.437856068 | L178: 28.39499247
A179: 1980 | B179: 11 | C179: 19 | D179: 8.7 | E179: 0 | F179: 0.74 | G179: 6.438 | H179: 0 | I179: 0 | J179: 0 | K179: 2.437856068 | L179: 24.39484854
A180: 1980 | B180: 11 | C180: 20 | D180: 6.1 | E180: 5.8 | F180: 0.74 | G180: 4.514 | H180: 0 | I180: 4.93 | J180: 0 | K180: 2.437856068 | L180: 27.24870461
A181: 1980 | B181: 11 | C181: 21 | D181: 3.5 | E181: 0 | F181: 0.74 | G181: 2.59 | H181: 0 | I181: 0 | J181: 0 | K181: 2.437856068 | L181: 27.09656068
A182: 1980 | B182: 11 | C182: 22 | D182: 6.4 | E182: 0 | F182: 0.74 | G182: 4.736 | H182: 0 | I182: 0 | J182: 0 | K182: 2.437856068 | L182: 24.79841674
A183: 1980 | B183: 11 | C183: 23 | D183: 4.5 | E183: 4.5 | F183: 0.74 | G183: 3.33 | H183: 0 | I183: 3.825 | J183: 0 | K183: 2.437856068 | L183: 27.73127281
A184: 1980 | B184: 11 | C184: 24 | D184: 6.6 | E184: 0 | F184: 0.74 | G184: 4.884 | H184: 0 | I184: 0 | J184: 0 | K184: 2.437856068 | L184: 25.28512888
A185: 1980 | B185: 11 | C185: 25 | D185: 5.5 | E185: 11.8 | F185: 0.74 | G185: 4.07 | H185: 0 | I185: 10.03 | J185: 0 | K185: 2.437856068 | L185: 33.68298495
A186: 1980 | B186: 11 | C186: 26 | D186: 1.4 | E186: 20.4 | F186: 0.74 | G186: 1.036 | H186: 0 | I186: 17.34 | J186: 0 | K186: 2.437856068 | L186: 52.42484101
A187: 1980 | B187: 11 | C187: 27 | D187: 4.2 | E187: 0 | F187: 0.74 | G187: 3.108 | H187: 5 | I187: 0 | J187: 0 | K187: 2.437856068 | L187: 46.75469708
A188: 1980 | B188: 11 | C188: 28 | D188: 8 | E188: 0 | F188: 0.74 | G188: 5.92 | H188: 1.754697082 | I188: 0 | J188: 0 | K188: 2.437856068 | L188: 41.51785607
A189: 1980 | B189: 11 | C189: 29 | D189: 9.8 | E189: 0 | F189: 0.74 | G189: 7.252 | H189: 0 | I189: 0 | J189: 0 | K189: 2.437856068 | L189: 36.70371214
A190: 1980 | B190: 11 | C190: 30 | D190: 6.6 | E190: 0 | F190: 0.74 | G190: 4.884 | H190: 0 | I190: 0 | J190: 0 | K190: 2.437856068 | L190: 34.2575682
A191: 1980 | B191: 12 | C191: 1 | D191: 6.7 | E191: 1.3 | F191: 0.78 | G191: 5.226 | H191: 0 | I191: 1.105 | J191: 0 | K191: 2.437856068 | L191: 32.57442427
A192: 1980 | B192: 12 | C192: 2 | D192: 4 | E192: 0 | F192: 0.78 | G192: 3.12 | H192: 0 | I192: 0 | J192: 0 | K192: 2.437856068 | L192: 31.89228034
A193: 1980 | B193: 12 | C193: 3 | D193: 1.8 | E193: 0 | F193: 0.78 | G193: 1.404 | H193: 0 | I193: 0 | J193: 0 | K193: 2.437856068 | L193: 32.92613641
A194: 1980 | B194: 12 | C194: 4 | D194: 6 | E194: 2.8 | F194: 0.78 | G194: 4.68 | H194: 0 | I194: 2.38 | J194: 0 | K194: 2.437856068 | L194: 33.06399247
A195: 1980 | B195: 12 | C195: 5 | D195: 2.9 | E195: 0.2 | F195: 0.78 | G195: 2.262 | H195: 0 | I195: 0.17 | J195: 0 | K195: 2.437856068 | L195: 33.40984854
A196: 1980 | B196: 12 | C196: 6 | D196: 15.8 | E196: 59.6 | F196: 0.78 | G196: 12.324 | H196: 0 | I196: 50.66 | J196: 0 | K196: 2.437856068 | L196: 74.18370461
A197: 1980 | B197: 12 | C197: 7 | D197: 1.5 | E197: 3.9 | F197: 0.78 | G197: 1.17 | H197: 5 | I197: 3.315 | J197: 0 | K197: 2.437856068 | L197: 73.76656068
A198: 1980 | B198: 12 | C198: 8 | D198: 4.7 | E198: 2.8 | F198: 0.78 | G198: 3.666 | H198: 5 | I198: 2.38 | J198: 0 | K198: 2.437856068 | L198: 69.91841674
A199: 1980 | B199: 12 | C199: 9 | D199: 5.3 | E199: 2.2 | F199: 0.78 | G199: 4.134 | H199: 5 | I199: 1.87 | J199: 0 | K199: 2.437856068 | L199: 65.09227281
A200: 1980 | B200: 12 | C200: 10 | D200: 6.1 | E200: 0.8 | F200: 0.78 | G200: 4.758 | H200: 5 | I200: 0.68 | J200: 0 | K200: 2.437856068 | L200: 58.45212888
... 7507 more rows
